Workbook

Sheet CAPA
C4: GOVERNO DO ESTADO DO PARANÁ
C6: DEPARTAMENTO DE ESTRADAS DE RODAGEM
B17: ESTUDO DOS CUSTOS DO SERVIÇO RODOVIÁRIO DO SISTEMA DE TRANSPORTE PÚBLICO DE PASSAGEIROS DO ESTADO DO PARANÁ
B21: LOTE LESTE E CAMPOS GERAIS
B22: Documento Preliminar Sujeito a Modificações
A30: =Insumos!G15 -> 2024-06-01

Sheet Resumo
B2: Documento Preliminar Sujeito a Modificações
A5: GOVERNO DO ESTADO DO PARANÁ
A9: DEPARTAMENTO DE ESTRADAS DE RODAGEM
A13: ESTUDO DOS CUSTOS DO SERVIÇO RODOVIÁRIO DO SISTEMA DE TRANSPORTE PÚBLICO DE PASSAGEIROS DO ESTADO DO PARANÁ
A18: RESUMO
A21: =Insumos!G15 -> 2024-06-01
B22: Indicador | D22: Unidade | E22: Valor | G22: Variação | I22: Variação
E23: Calculado | F23: Anterior | M23: Indicador | O23: Leste (c/corr.) | P23: Norte | Q23: Noroeste | R23: Oeste | S23: Total
B24: Demanda Equivalente | D24: pass/mês | E24: =Insumos!G29 -> 0 | F24: 6315981 | G24: =E24/F24-1 -> -1 | I24: =G24/H24-1 ->  | M24: Demanda Equivalente | O24: 131766 | P24: 174450 | Q24: 159428 | R24: 171919 | S24: =SUM(O24:R24) -> 637563
B25: Ocupação Média | D25: pass/viagem | E25: =Insumos!G31 -> 0 | F25: 24.5 | G25: =E25/F25-1 -> -1 | I25: =G25/H25-1 ->  | M25: Ocupação Média | O25: 41.58 | P25: 42.71 | Q25: 41.71 | R25: 41.83 | S25: =S24/S26 -> 41.98360332
B26: Viagens | D26: viagens/mês | E26: =E24/E25 ->  | F26: =F24/F25 -> 257795.1429 | M26: Viagens | O26: =ROUND(O24/O25,0) -> 3169 | P26: =ROUND(P24/P25,0) -> 4085 | Q26: =ROUND(Q24/Q25,0) -> 3822 | R26: 4110 | S26: =SUM(O26:R26) -> 15186
B27: Percurso | D27: km/mês | E27: =Insumos!G37 -> 0 | F27: 4906596.838 | G27: -1 | M27: Percurso | O27: 757022.67 | P27: 840993 | Q27: 725780.77 | R27: 1159804.97 | S27: =SUM(O27:R27) -> 3483601.41
B28: Extensão Média | D28: km | E28: =E27/E26 ->  | F28: =F27/F26 -> 19.03292973 | M28: Extensão Média | O28: =O27/O26 -> 238.8837709 | P28: =P27/P26 -> 205.8734394 | Q28: 189.8955442 | R28: =R27/R26 -> 282.1909903 | S28: =S27/S26 -> 229.3955887
B29: Frota Total | D29: veículos | E29: =Planilha!G401 -> 0 | F29: 1032 | G29: -1 | M29: Frota Total | O29: 109 | P29: 128 | Q29: 126 | R29: 141 | S29: =SUM(O29:R29) -> 504
B30: Frota Efetiva | D30: veículos | E30: =Planilha!G393 -> 0 | F30: 929 | G30: -1 | M30: Frota Efetiva | O30: 98 | P30: 115 | Q30: 113 | R30: 127 | S30: 453
B31: Idade Média da Frota | D31: anos | E31: =Insumos!J295 ->  | F31: 9.737403101 | M31: Idade Média da Frota | O31: 8.330275229 | P31: 8.375 | Q31: 8.515873016 | R31: 7.453900709 | S31: =(O31*O29+P31*P29+Q29*Q31+R29*R31)/S29 -> 8.142857143
B32: PMM | D32: km/veículo.mês | E32: =Planilha!G414 ->  | F32: 5545.66919 | M32: PMM | O32: =1.05*O27/O30 -> 8110.957179 | P32: =1.05*P27/P30 -> 7678.631739 | Q32: 6743.980606 | R32: 9588.938728 | S32: =1.05*S27/S30 -> 8074.572805
B33: IPK Equivalente | D33: passageiros/km | E33: =Planilha!G415 ->  | F33: 1.2259 | M33: IPK Equivalente | O33: =O24/(O27*1.05) -> 0.1657697101 | P33: =P24/(P27*1.05) -> 0.1975555767 | Q33: =Q24/(Q27*1.05) -> 0.2092039315 | R33: =R24/(R27*1.05) -> 0.1411723395 | S33: =S24/(S27*1.05) -> 0.1743031954
B34: Custo por Quilômetro | D34: R$/km | E34: =Planilha!G1209 ->  | F34: =Planilha!G1210 ->  | G34: =E34/F34-1 ->  | M34: Custo por Quilômetro | O34: 13.28008255 | P34: 34.89625828 | Q34: 5.645007817 | R34: 28.77195005 | S34: =(P34*P27+Q34*Q27+R34*R27+O27*O34)/S27 -> 22.06559024
B35: Custo por Passageiro | D35: R$/passageiro | E35: =E34/E33 ->  | F35: =F34/F33 ->  | M35: Custo por Passageiro | O35: =O34/O33 -> 80.11163525 | P35: =P34/P33 -> 176.6402086 | Q35: 26.98327788 | R35: 203.8072767 | S35: =S34/S33 -> 126.5931482
B36: Coeficiente Tarifário | D36: R$/passageiro.km | E36: =Planilha!G1212 ->  | F36: =Planilha!G1213 ->  | M36: Coeficiente Tarifário | O36: 0.3193863048 | P36: 0.8170512357 | Q36: 0.1353394346 | R36: 0.6878305057 | S36: =S34/S25 -> 0.5255763798
B37: PMM - Percurso Médio Mensal
B38: IPK - Indice de Passageiros por Quilômetro
B47: CUSTOS DE OPERAÇÃO
B49: RUBRICA | G49: VALOR (R$/km)
B51: CUSTOS VARIÁVEIS | G51: =Planilha!G513 -> 
C52: Combustível | G52: =Planilha!G463 -> 
C53: Lubrificantes e ARLA | G53: =Planilha!G470 -> 0
C54: Rodagem | G54: =Planilha!G491 -> 
C55: Peças e Acessórios | G55: =Planilha!G508 -> 
B56: CUSTOS FIXOS | G56: =Planilha!G1191 -> 
C57: Capital | G57: =Planilha!G1154*Planilha!G401/Planilha!G409 -> 
D58: Depreciação | G58: =Planilha!G835*Planilha!G401/Planilha!G409 -> 
E59: Veículos | G59: =Planilha!G800*Planilha!G401/Planilha!G409 -> 
E60: Outros ativos | G60: =Planilha!G833*Planilha!G401/Planilha!G409 -> 
D61: Remuneração | G61: =(Planilha!G1117+Planilha!G1120+Planilha!G1140+Planilha!G1142)*Planilha!G401/Planilha!G409 -> 
E62: Veículos | G62: =Planilha!G1117*Planilha!G401/Planilha!G409 -> 
E63: Almoxarifado | G63: =Planilha!G1120*Planilha!G401/Planilha!G409 -> 
E64: Outros ativos | G64: =Planilha!G1142*Planilha!G401/Planilha!G409 -> 
D65: Amortização de Outros ativos | G65: =Planilha!G1150*Planilha!G401/Planilha!G409 -> 
E66: Outorga | G66: =Planilha!G1149*Planilha!G401/Planilha!G409 -> 
E67: Invest. Terminal e Infraestrutura | G67: =Planilha!G1149*Planilha!G401/Planilha!G409 -> 
C68: Pessoal | G68: =Planilha!G1175*Planilha!G393/Planilha!G409 -> 
D69: Operação | G69: =Planilha!G1166*Planilha!G393/Planilha!G409 -> 
D70: Manutenção | G70: =Planilha!G1168*Planilha!G393/Planilha!G409 -> 
D71: Administração | G71: =Planilha!G1170*Planilha!G393/Planilha!G409 -> 
D72: Benefícios | G72: =Planilha!G1172*Planilha!G393/Planilha!G409 -> 
D73: Diretoria | G73: =Planilha!G1174*Planilha!G393/Planilha!G409 -> 
C74: Administração | G74: =Planilha!G1184*Planilha!G401/Planilha!G409 -> 
D75: Despesa de Administração | G75: =Planilha!G1181*Planilha!G401/Planilha!G409 -> 
D76: Custo Ambiental | G76: =Planilha!G1183*Planilha!G401/Planilha!G409 -> 
B77: CUSTO DE REMUNERAÇÃO PELA PRESTAÇÃO DOS SERVIÇOS | G77: =Planilha!G1202 -> 
B78: IMPOSTOS | G78: =Planilha!G1209-Planilha!G1207 -> 
B79: TOTAL | G79: =Planilha!G1209 -> 
B85: PARTICIPAÇÕES DOS CUSTOS DE OPERAÇÃO
D87: Resultados do Cálculo com as Correções | K87: Resultados do Cálculo sem as Correções | M87: Resultados da Amostra
B92: RUBRICA | G92: VALOR | K92: VALOR | M92: Intervalo de Confiança
M93: Máximo | N93: Média | O93: Minimo
B94: CUSTOS VARIÁVEIS | G94: =G51/$G$79 ->  | K94: 0.1223853779 | M94: 0.3609314426 | N94: 0.3014175351 | O94: 0.2419036277
C95: Combustível | K95: 0.05688314464 | M95: 0.2058237305 | N95: 0.158172916 | O95: 0.1105221014
C96: Lubrificantes e ARLA | K96: 0.007957314351 | M96: 0.01326755297 | N96: 0.00806684557 | O96: 0.002866138167
C97: Rodagem | K97: 0.01029223197 | M97: 0.05004057194 | N97: 0.03593749948 | O97: 0.02183442701
C98: Peças e Acessórios | K98: 0.04725268697 | M98: 0.1354535596 | N98: 0.09924027411 | O98: 0.06302698857
B99: CUSTOS FIXOS | K99: 0.7251146221 | M99: 0.6917980654 | N99: 0.5930240302 | O99: 0.4942499951
C100: Capital | K100: 0.08814832607 | M100: 0.2542995614 | N100: 0.1745199055 | O100: 0.09474024952
D101: Depreciação | K101: 0.02097401002 | M101: 0.1691919022 | N101: 0.08932984934 | O101: 0.00946779644
E102: Veículos | K102: 0.01981983711
E103: Outros ativos | K103: 0.001154172911
D104: Remuneração | K104: 0.06717431605 | M104: 0.1231095824 | N104: 0.08519005611 | O104: 0.04727052983
E105: Veículos | K105: 0.01071587986
E106: Almoxarifado | K106: 0.01025885449
E107: Outros ativos | G107: =G64/$G$79 ->  | K107: 0.0461995817
D108: Amortização de Outros ativos | K108: 0
E109: Outorga | K109: 0
E110: Investimento Terminal e Infraestrutura | K110: 0
C111: Pessoal | K111: 0.5765425842 | M111: 0.4099186824 | N111: 0.3538432872 | O111: 0.2977678919
D112: Operação | K112: 0.0302981298 | M112: 0.2224483202 | N112: 0.1933363239 | O112: 0.1642243275
D113: Manutenção | K113: 0.01109438738 | M113: 0.09501637801 | N113: 0.06983368486 | O113: 0.0446509917
D114: Administração | K114: 0.006694492971 | M114: 0.1472229749 | N114: 0.06448819652 | O114: 0
D115: Benefícios | K115: 0.5221041121 | M115: 0.1483029579 | N115: 0.06179926646 | O115: 0
D116: Diretoria | K116: 0.00635146198 | M116: 0 | N116: 0 | O116: 0
C117: Administração | K117: 0.06042371177 | M117: 0.1202984987 | N117: 0.06466083762 | O117: 0.009023176522
D118: Despesa de Administração | K118: 0.06042371177 | M118: 0.1202984987 | N118: 0.06466083762 | O118: 0.009023176522
D119: Custo Ambiental | K119: 0
B120: CUSTO DE REMUNERAÇÃO PELA PRESTAÇÃO DOS SERVIÇOS | K120: 0
B121: IMPOSTOS | K121: 0.1525 | M121: 0.2607828684 | N121: 0.1407353076 | O121: 0.02068774677
B122: TOTAL
B125: Resultados do Cálculo sem as Correções
B127: Indicador | D127: Unidade | E127: Valor | G127: Variação
E128: Calculado | F128: Anterior
B129: Demanda Equivalente | D129: pass/mês | E129: 131766 | F129: 6315981 | G129: -0.9791376826
B130: Ocupação Média | D130: pass/viagem | E130: 41.58 | F130: 24.5 | G130: 0.6971428571
B131: Viagens | D131: viagens/mês | E131: =E129/E130 -> 3168.975469 | F131: =F129/F130 -> 257795.1429 | G131: 0.6971428571
B132: Percurso | D132: km/mês | E132: 757022.67 | F132: 4906596.838 | G132: -0.8457132927
B133: Extensão Média | D133: km | E133: =E132/E131 -> 238.8856201 | F133: =F132/F131 -> 19.03292973 | G133: -0.8457132927
B134: Frota Total | D134: veículos | E134: 109 | F134: 1032 | G134: -0.894379845
B135: Frota Efetiva | D135: veículos | E135: 98 | F135: 929 | G135: -0.894510226
B136: Idade Média da Frota | D136: anos | E136: 8.330275229 | F136: 9.737403101 | G136: -0.1445075095
B137: PMM | D137: km/veículo.mês | E137: 8110.957143 | F137: 5545.66919 | G137: 0.4625750048
B138: IPK Equivalente | D138: passageiros/km | E138: 0.1657697109 | F138: 1.2259 | G138: -0.8647771345
B139: Custo por Quilômetro | D139: R$/km | E139: 32.73843266 | F139: 32.73843266 | G139: 0
B140: Custo por Passageiro | D140: R$/passageiro | E140: 197.4934533 | F140: 26.70563068 | G140: 6.395199
B141: Coeficiente Tarifário | D141: R$/passageiro.km | E141: 0.7873600927 | F141: 0.7873600927 | G141: 0
B143: Coeficientes Anteriores
B144: Pessoal de Administração | E144: 22.0954 | F144: %/pessoal de operação
B145: Benefícios | E145: 10.489 | F145: % do PVNC/veículo.mês
B147: Resultados do Cálculo com as Correções
B149: Indicador | D149: Unidade | E149: Valor | G149: Variação
E150: Calculado | F150: Anterior
B151: Demanda Equivalente | D151: pass/mês | E151: 131766 | F151: 6315981 | G151: -0.9791376826
B152: Ocupação Média | D152: pass/viagem | E152: 41.58 | F152: 24.5 | G152: 0.6971428571
B153: Viagens | D153: viagens/mês | E153: 3168.975469 | F153: 257795.1429 | G153: -0.9877073888
B154: Percurso | D154: km/mês | E154: 757022.67 | F154: 4906596.838 | G154: -0.8457132927
B155: Extensão Média | D155: km | E155: 238.8856201 | F155: 19.03292973 | G155: 11.55117439
B156: Frota Total | D156: veículos | E156: 109 | F156: 1032 | G156: -0.894379845
B157: Frota Efetiva | D157: veículos | E157: 98 | F157: 929 | G157: -0.894510226
B158: Idade Média da Frota | D158: anos | E158: 8.330275229 | F158: 9.737403101 | G158: -0.1445075095
B159: PMM | D159: km/veículo.mês | E159: 8110.957143 | F159: 5545.66919 | G159: 0.4625750048
B160: IPK Equivalente | D160: passageiros/km | E160: 0.1657697109 | F160: 1.2259 | G160: -0.8647771345
B161: Custo por Quilômetro | D161: R$/km | E161: 13.28008255 | F161: 32.73843266 | G161: -0.5943580227
B162: Custo por Passageiro | D162: R$/passageiro | E162: 80.1116349 | F162: 26.70563068 | G162: 1.999803144
B163: Coeficiente Tarifário | D163: R$/passageiro.km | E163: 0.3193863048 | F163: 0.7873600927 | G163: -0.5943580227
B165: Coeficientes Corrigidos
B166: Pessoal de Administração | E166: 35.22859924 | F166: %/pessoal de operação
B167: Benefícios | E167: 0.2894260971 | F167: % do PVNC/veículo.mês

Sheet Insumos
B2: Documento Preliminar Sujeito a Modificações
B4: GOVERNO DO ESTADO DO PARANÁ
B6: DEPARTAMENTO DE ESTRADAS DE RODAGEM
B8: ESTUDO DOS CUSTOS DO SERVIÇO RODOVIÁRIO DO SISTEMA DE TRANSPORTE PÚBLICO DE PASSAGEIROS DO ESTADO DO PARANÁ
B15: 1. DATA | G15: 2024-06-01
B17: 2. CUSTO E COEFICIENTE TARIFÁRIO VIGENTE
B19: RUBRICA | F19: UNIDADE | G19: Valor
B21: CUSTO | F21: R$/km | G21: =Planilha!G1209 -> 
B22: COEFICIENTE TARIFÁRIO | F22: R$/pass.km | G22: =Planilha!G1212 -> 
B25: 3. DEMANDA EQUIVALENTE MÉDIA MENSAL
B27: RUBRICA | F27: UNIDADE | G27: Valor
B29: DEMANDA | F29: passageiros/mês
B31: OCUPAÇÃO MÉDIA | F31: passageiros/viagem
B33: 4. PERCURSO MENSAL
B35: RUBRICA | F35: UNIDADE | G35: Valor
B37: PERCURSO PRODUTIVO | F37: km/mês
B40: 5. FROTA
B42: RUBRICA | F42: UNIDADE | G42: =G35 -> Valor
B44: FROTA SEM AR CONDICIONADO | C44: Micro-Ônibus | D44: Modelo 1 | F44: veículos | G44: 0
D45: Modelo 2 | F45: veículos | G45: 0
D46: Modelo 3 | F46: veículos | G46: 0
C47: Ônibus Convencional | D47: Modelo 1 | F47: veículos | G47: 0
D48: Modelo 2 | F48: veículos | G48: 0
D49: Modelo 3 | F49: veículos | G49: 0
C50: Ônibus Leito | D50: Modelo 1 | F50: veículos | G50: 0
D51: Modelo 2 | F51: veículos | G51: 0
D52: Modelo 3 | F52: veículos | G52: 0
C53: Ônibus Misto | D53: Modelo 1 | F53: veículos | G53: 0
D54: Modelo 2 | F54: veículos | G54: 0
D55: Modelo 3 | F55: veículos | G55: 0
C56: Outro | D56: Modelo 1 | F56: veículos | G56: 0
D57: Modelo 2 | F57: veículos | G57: 0
D58: Modelo 3 | F58: veículos | G58: 0
C59: Frota Total sem Ar Condicionado | D59: Micro-Ônibus | F59: veículos | G59: 0
D60: Ônibus Leve | F60: veículos | G60: 0
D61: Ônibus Pesado | F61: veículos | G61: 0
D62: Ônibus Articulado | F62: veículos | G62: 0
D63: Ônibus Biarticulado | F63: veículos | G63: 0
D64: Total | F64: veículos | G64: 0
B66: FROTA COM AR CONDICIONADO | C66: Micro-Ônibus | D66: Modelo 1 | F66: veículos | G66: 0
B67: AR CONDICIONADO | D67: Modelo 2 | F67: veículos | G67: 0
D68: Modelo 3 | F68: veículos | G68: 0
C69: Ônibus Convencional | D69: Modelo 1 | F69: veículos | G69: 0
D70: Modelo 2 | F70: veículos | G70: 0
D71: Modelo 3 | F71: veículos | G71: 0
C72: Ônibus Leito | D72: Modelo 1 | F72: veículos | G72: 0
D73: Modelo 2 | F73: veículos | G73: 0
D74: Modelo 3 | F74: veículos | G74: 0
C75: Ônibus Misto | D75: Modelo 1 | F75: veículos | G75: 0
D76: Modelo 2 | F76: veículos | G76: 0
D77: Modelo 3 | F77: veículos | G77: 0
C78: Outro | D78: Modelo 1 | F78: veículos | G78: 0
D79: Modelo 2 | F79: veículos | G79: 0
D80: Modelo 3 | F80: veículos | G80: 0
C81: Frota Total com Ar Condicionado | D81: Micro-Ônibus | F81: veículos | G81: =SUM(G66:G68) -> 0
C82: Ar Condicionado | D82: Ônibus Convencional | F82: veículos | G82: =SUM(G69:G71) -> 0
D83: Ônibus Leito | F83: veículos | G83: =SUM(G72:G74) -> 0
D84: Ônibus Misto | F84: veículos | G84: =SUM(G75:G77) -> 0
D85: Outro | F85: veículos | G85: =SUM(G78:G80) -> 0
D86: Total | F86: veículos | G86: =SUM(G81:G85) -> 0
B87: FROTA TOTAL | C87: Micro-Ônibus | F87: veículos | G87: =G59+G81 -> 0
C88: Ônibus Convencional | F88: veículos | G88: =G60+G82 -> 0
C89: Ônibus Leito | F89: veículos | G89: 0
C90: Ônibus Misto | F90: veículos | G90: 0
C91: Outro | F91: veículos | G91: 0
C92: TOTAL | F92: veículos | G92: =SUM(G87:G91) -> 0
B95: 6. PNEUS
B97: RUBRICA | F97: UNIDADE | G97: Valor
B99: QUANTIDADE PNEUS | C99: Micro-Ônibus | D99: Modelo Padrão | F99: unidades | G99: =SUM(G44:G46,G66:G68)*6 -> 0
F100: unidades
F101: unidades
C102: Ônibus Convencional | D102: Modelo Padrão | F102: unidades | G102: =SUM(G47:G49,G69:G71)*6 -> 0
F103: unidades
F104: unidades
C105: Ônibus Leito | D105: Modelo Padrão | F105: unidades | G105: =SUM(G50:G52,G72:G74)*6 -> 0
F106: unidades
F107: unidades
C108: Ônibus Misto | D108: Modelo Padrão | F108: unidades | G108: =SUM(G53:G55,G75:G77)*10 -> 0
F109: unidades
F110: unidades
C111: Outro | D111: Modelo Padrão | F111: unidades | G111: =SUM(G56:G58,G78:G80)*14 -> 0
F112: unidades
F113: unidades
C114: Total | F114: unidades | G114: =SUM(G99:G113) -> 0
B117: 7. DISTRIBUIÇÃO ETÁRIA DA FROTA
B119: RUBRICA | F119: UNIDADE | G119: Valor
B121: FROTA SEM AR CONDICIONADO | C121: Micro-Ônibus | D121: 0 a 1 ano | F121: veículos | G121: 0 | J121: 1 | K121: =G121*J121 -> 0
D122: 1 a 2 anos | F122: veículos | G122: 0 | J122: =1+J121 -> 2 | K122: =G122*J122 -> 0
D123: 2 a 3 anos | F123: veículos | G123: 0 | J123: =1+J122 -> 3 | K123: =G123*J123 -> 0
D124: 3 a 4 anos | F124: veículos | G124: 0 | J124: 4 | K124: 0
D125: 4 a 5 anos | F125: veículos | G125: 0 | J125: 5 | K125: 0
D126: 5 a 6 anos | F126: veículos | G126: 0 | J126: 6 | K126: 0
D127: 6 a 7 anos | F127: veículos | G127: 0 | J127: 7 | K127: 0
D128: 7 a 8 anos | F128: veículos | G128: 0 | J128: 8 | K128: 0
D129: 8 a 9 anos | F129: veículos | G129: 0 | J129: 9 | K129: 0
D130: 9 a 10 anos | F130: veículos | G130: 0 | J130: 10 | K130: 0
D131: 10 a 11 anos | F131: veículos | G131: 0 | J131: 11 | K131: 0
D132: 11 a 12 anos | F132: veículos | G132: 0 | J132: 12 | K132: 0
D133: 12 a 13 anos | F133: veículos | G133: 0 | J133: 13 | K133: 0
D134: 13 a 14 anos | F134: veículos | G134: 0 | J134: 14 | K134: 0
D135: 14 a 15 anos | F135: veículos | G135: 0 | J135: 15 | K135: 0
D136: + de 15 anos | F136: veículos | G136: 0 | J136: 16 | K136: 0
D137: Total | F137: veículos | G137: =SUM(G121:G136) -> 0
C138: Ônibus Convencional | D138: 0 a 1 ano | F138: veículos | G138: 0 | J138: =1+J137 -> 1 | K138: =G138*J138 -> 0
D139: 1 a 2 anos | F139: veículos | G139: 0 | J139: 2 | K139: 0
D140: 2 a 3 anos | F140: veículos | G140: 0 | J140: 3 | K140: 0
D141: 3 a 4 anos | F141: veículos | G141: 0 | J141: 4 | K141: 0
D142: 4 a 5 anos | F142: veículos | G142: 0 | J142: 5 | K142: 0
D143: 5 a 6 anos | F143: veículos | G143: 0 | J143: 6 | K143: 0
D144: 6 a 7 anos | F144: veículos | G144: 0 | J144: 7 | K144: 0
D145: 7 a 8 anos | F145: veículos | G145: 0 | J145: 8 | K145: 0
D146: 8 a 9 anos | F146: veículos | G146: 0 | J146: 9 | K146: 0
D147: 9 a 10 anos | F147: veículos | G147: 0 | J147: 10 | K147: 0
D148: 10 a 11 anos | F148: veículos | G148: 0 | J148: 11 | K148: 0
D149: 11 a 12 anos | F149: veículos | G149: 0 | J149: 12 | K149: 0
D150: 12 a 13 anos | F150: veículos | G150: 0 | J150: 13 | K150: 0
D151: 13 a 14 anos | F151: veículos | G151: 0 | J151: 14 | K151: 0
D152: 14 a 15 anos | F152: veículos | G152: 0 | J152: 15 | K152: 0
D153: + de 15 anos | F153: veículos | G153: 0 | J153: 16 | K153: 0
D154: Total | F154: veículos | G154: =SUM(G138:G153) -> 0
C155: Ônibus Leito | D155: 0 a 1 ano | F155: veículos | G155: 0 | J155: =1+J154 -> 1 | K155: =G155*J155 -> 0
D156: 1 a 2 anos | F156: veículos | G156: 0 | J156: 2 | K156: 0
D157: 2 a 3 anos | F157: veículos | G157: 0 | J157: 3 | K157: 0
D158: 3 a 4 anos | F158: veículos | G158: 0 | J158: 4 | K158: 0
D159: 4 a 5 anos | F159: veículos | G159: 0 | J159: 5 | K159: 0
D160: 5 a 6 anos | F160: veículos | G160: 0 | J160: 6 | K160: 0
D161: 6 a 7 anos | F161: veículos | G161: 0 | J161: 7 | K161: 0
D162: 7 a 8 anos | F162: veículos | G162: 0 | J162: 8 | K162: 0
D163: 8 a 9 anos | F163: veículos | G163: 0 | J163: 9 | K163: 0
D164: 9 a 10 anos | F164: veículos | G164: 0 | J164: 10 | K164: 0
D165: 10 a 11 anos | F165: veículos | G165: 0 | J165: 11 | K165: 0
D166: 11 a 12 anos | F166: veículos | G166: 0 | J166: 12 | K166: 0
D167: 12 a 13 anos | F167: veículos | G167: 0 | J167: 13 | K167: 0
D168: 13 a 14 anos | F168: veículos | G168: 0 | J168: 14 | K168: 0
D169: 14 a 15 anos | F169: veículos | G169: 0 | J169: 15 | K169: 0
D170: + de 15 anos | F170: veículos | G170: 0 | J170: 16 | K170: 0
D171: Total | F171: veículos | G171: =SUM(G155:G170) -> 0
C172: Ônibus Misto | D172: 0 a 1 ano | F172: veículos | G172: 0 | J172: =1+J171 -> 1 | K172: =G172*J172 -> 0
D173: 1 a 2 anos | F173: veículos | G173: 0 | J173: 2 | K173: 0
D174: 2 a 3 anos | F174: veículos | G174: 0 | J174: 3 | K174: 0
D175: 3 a 4 anos | F175: veículos | G175: 0 | J175: 4 | K175: 0
D176: 4 a 5 anos | F176: veículos | G176: 0 | J176: 5 | K176: 0
D177: 5 a 6 anos | F177: veículos | G177: 0 | J177: 6 | K177: 0
D178: 6 a 7 anos | F178: veículos | G178: 0 | J178: 7 | K178: 0
D179: 7 a 8 anos | F179: veículos | G179: 0 | J179: 8 | K179: 0
D180: 8 a 9 anos | F180: veículos | G180: 0 | J180: 9 | K180: 0
D181: 9 a 10 anos | F181: veículos | G181: 0 | J181: 10 | K181: 0
D182: 10 a 11 anos | F182: veículos | G182: 0 | J182: 11 | K182: 0
D183: 11 a 12 anos | F183: veículos | G183: 0 | J183: 12 | K183: 0
D184: 12 a 13 anos | F184: veículos | G184: 0 | J184: 13 | K184: 0
D185: 13 a 14 anos | F185: veículos | G185: 0 | J185: 14 | K185: 0
D186: 14 a 15 anos | F186: veículos | G186: 0 | J186: 15 | K186: 0
D187: + de 15 anos | F187: veículos | G187: 0 | J187: 16 | K187: 0
D188: Total | F188: veículos | G188: =SUM(G172:G187) -> 0
C189: Outro | D189: 0 a 1 ano | F189: veículos | G189: 0 | J189: =1+J188 -> 1 | K189: =G189*J189 -> 0
D190: 1 a 2 anos | F190: veículos | G190: 0 | J190: 2 | K190: 0
D191: 2 a 3 anos | F191: veículos | G191: 0 | J191: 3 | K191: 0
D192: 3 a 4 anos | F192: veículos | G192: 0 | J192: 4 | K192: 0
D193: 4 a 5 anos | F193: veículos | G193: 0 | J193: 5 | K193: 0
D194: 5 a 6 anos | F194: veículos | G194: 0 | J194: 6 | K194: 0
D195: 6 a 7 anos | F195: veículos | G195: 0 | J195: 7 | K195: 0
D196: 7 a 8 anos | F196: veículos | G196: 0 | J196: 8 | K196: 0
D197: 8 a 9 anos | F197: veículos | G197: 0 | J197: 9 | K197: 0
D198: 9 a 10 anos | F198: veículos | G198: 0 | J198: 10 | K198: 0
D199: 10 a 11 anos | F199: veículos | G199: 0 | J199: 11 | K199: 0
D200: 11 a 12 anos | F200: veículos | G200: 0 | J200: 12 | K200: 0
D201: 12 a 13 anos | F201: veículos | G201: 0 | J201: 13 | K201: 0
D202: 13 a 14 anos | F202: veículos | G202: 0 | J202: 14 | K202: 0
D203: 14 a 15 anos | F203: veículos | G203: 0 | J203: 15 | K203: 0
D204: + de 15 anos | F204: veículos | G204: 0 | J204: 16 | K204: 0
D205: Total | F205: veículos | G205: =SUM(G189:G204) -> 0
B206: FROTA TOTAL SEM AR CONDICIONADO | F206: veículos | G206: =G188+G171+G154+G137+G205 -> 0
B207: FROTA OPERANTE SEM AR CONDICIONADO | F207: veículos | G207: =ROUND((1-Coeficientes!F20/100)*G206,0) -> 0
F208: =IF(G206=G64," ","Verificar Frota sem Ar Condicionado") -> 
B209: FROTA COM AR CONDICIONADO | C209: Micro-Ônibus | D209: 0 a 1 ano | F209: veículos | G209: 0 | J209: =1+J208 -> 1 | K209: =G209*J209 -> 0
D210: 1 a 2 anos | F210: veículos | G210: 0 | J210: 2 | K210: 0
D211: 2 a 3 anos | F211: veículos | G211: 0 | J211: 3 | K211: 0
D212: 3 a 4 anos | F212: veículos | G212: 0 | J212: 4 | K212: 0
D213: 4 a 5 anos | F213: veículos | G213: 0 | J213: 5 | K213: 0
D214: 5 a 6 anos | F214: veículos | G214: 0 | J214: 6 | K214: 0
D215: 6 a 7 anos | F215: veículos | G215: 0 | J215: 7 | K215: 0
D216: 7 a 8 anos | F216: veículos | G216: 0 | J216: 8 | K216: 0
D217: 8 a 9 anos | F217: veículos | G217: 0 | J217: 9 | K217: 0
D218: 9 a 10 anos | F218: veículos | G218: 0 | J218: 10 | K218: 0
D219: 10 a 11 anos | F219: veículos | G219: 0 | J219: 11 | K219: 0
D220: 11 a 12 anos | F220: veículos | G220: 0 | J220: 12 | K220: 0
D221: 12 a 13 anos | F221: veículos | G221: 0 | J221: 13 | K221: 0
D222: 13 a 14 anos | F222: veículos | G222: 0 | J222: 14 | K222: 0
D223: 14 a 15 anos | F223: veículos | G223: 0 | J223: 15 | K223: 0
D224: + de 15 anos | F224: veículos | G224: 0 | J224: 16 | K224: 0
D225: Total | F225: veículos | G225: =SUM(G209:G224) -> 0
C226: Ônibus Convencional | D226: 0 a 1 ano | F226: veículos | G226: 0 | J226: =1+J225 -> 1 | K226: =G226*J226 -> 0
D227: 1 a 2 anos | F227: veículos | G227: 0 | J227: 2 | K227: 0
D228: 2 a 3 anos | F228: veículos | G228: 0 | J228: 3 | K228: 0
D229: 3 a 4 anos | F229: veículos | G229: 0 | J229: 4 | K229: 0
D230: 4 a 5 anos | F230: veículos | G230: 0 | J230: 5 | K230: 0
D231: 5 a 6 anos | F231: veículos | G231: 0 | J231: 6 | K231: 0
D232: 6 a 7 anos | F232: veículos | G232: 0 | J232: 7 | K232: 0
D233: 7 a 8 anos | F233: veículos | G233: 0 | J233: 8 | K233: 0
D234: 8 a 9 anos | F234: veículos | G234: 0 | J234: 9 | K234: 0
... 188 more rows

Sheet Coeficientes
B2: Documento Preliminar Sujeito a Modificações
B4: GOVERNO DO ESTADO DO PARANÁ
B6: DEPARTAMENTO DE ESTRADAS DE RODAGEM
B8: ESTUDO DOS CUSTOS DO SERVIÇO RODOVIÁRIO DO SISTEMA DE TRANSPORTE PÚBLICO DE PASSAGEIROS DO ESTADO DO PARANÁ
B11: =Insumos!G15 -> 2024-06-01
B14: COEFICIENTES
B17: 1. DADOS OPERACIONAIS
B19: COEFICIENTE DE PERCURSO IMPRODUTIVO | F19: 5 | G19: % do percurso total
B20: COEFICIENTE DE FROTA OPERANTE | F20: 10 | G20: % da frota total
B23: 2. CUSTOS VARIÁVEIS
B25: COEFICIENTE DE CONSUMO DE COMBUSTÍVEL | D25: Sem Ar Condicionado | E25: Micro-Ônibus | G25: litros/km
E26: Ônibus Convencional | G26: litros/km
E27: Ônibus Leito | G27: litros/km
E28: Ônibus Misto | G28: litros/km
E29: Outro | G29: litros/km
D30: Com Ar Condicionado | E30: Micro-Ônibus | G30: litros/km
E31: Ônibus Convencional | G31: litros/km
E32: Ônibus Leito | G32: litros/km
E33: Ônibus Misto | G33: litros/km
E34: Outro | G34: litros/km
B36: COEFICIENTE DE CONSUMO DE ÓLEOS E LUBRIFICANTES | G36: litros de óleo diesel/km
B38: COEFICIENTE DE CONSUMO DE ARLA | G38: litros de óleo diesel/km
B40: COEFICIENTE DE CONSUMO DA RODAGEM | D40: Vida Útil | E40: Micro-Ônibus | G40: km/pneu
E41: Ônibus Convencional | G41: km/pneu
E42: Ônibus Leito | G42: km/pneu
E43: Ônibus Misto | G43: km/pneu
E44: Outro | G44: km/pneu
D45: Quantidade de Recapagens | G45: unidades/ pneu
D46: Quantidade de Câmaras | G46: unidades/ pneu
D47: Quantidade de Protetores | G47: unidades/ pneu
B48: COEFICIENTE DE CONSUMO DE PEÇAS E ACESSÓRIOS | G48: % do PVNC
B51: 3. CUSTOS FIXOS
B53: COEFICIENTE DE DEPRECIAÇÃO MENSAL DA FROTA | D53: Micro-Ônibus | E53: 0 a 1 ano | F53: ='Depre e Rem Gen'!G19 -> 0.01363636364 | G53: %/veículo.mês
E54: 1 a 2 anos | F54: ='Depre e Rem Gen'!G20 -> 0.01227272727 | G54: %/veículo.mês
E55: 2 a 3 anos | F55: ='Depre e Rem Gen'!G21 -> 0.01090909091 | G55: %/veículo.mês
E56: 3 a 4 anos | F56: ='Depre e Rem Gen'!G22 -> 0.009545454545 | G56: %/veículo.mês
E57: 4 a 5 anos | F57: ='Depre e Rem Gen'!G23 -> 0.008181818182 | G57: %/veículo.mês
E58: 5 a 6 anos | F58: ='Depre e Rem Gen'!G24 -> 0.006818181818 | G58: %/veículo.mês
E59: 6 a 7 anos | F59: ='Depre e Rem Gen'!G25 -> 0.005454545455 | G59: %/veículo.mês
E60: 7 a 8 anos | F60: ='Depre e Rem Gen'!G26 -> 0.004090909091 | G60: %/veículo.mês
E61: 8 a 9 anos | F61: ='Depre e Rem Gen'!G27 -> 0.002727272727 | G61: %/veículo.mês
E62: 9 a 10 anos | F62: ='Depre e Rem Gen'!G28 -> 0.001363636364 | G62: %/veículo.mês
E63: 10 a 11 anos | F63: ='Depre e Rem Gen'!G29 -> 0 | G63: %/veículo.mês
E64: 11 a 12 anos | F64: ='Depre e Rem Gen'!G30 -> 0 | G64: %/veículo.mês
E65: 12 a 13 anos | F65: ='Depre e Rem Gen'!G31 -> 0 | G65: %/veículo.mês
E66: 13 a 14 anos | F66: ='Depre e Rem Gen'!G32 -> 0 | G66: %/veículo.mês
E67: 14 a 15 anos | F67: ='Depre e Rem Gen'!G33 -> 0 | G67: %/veículo.mês
E68: + de 15 anos | F68: ='Depre e Rem Gen'!G34 -> 0 | G68: %/veículo.mês
D69: Ônibus Convencional | E69: 0 a 1 ano | F69: ='Depre e Rem Gen'!M19 -> 0.01363636364 | G69: %/veículo.mês
E70: 1 a 2 anos | F70: ='Depre e Rem Gen'!M20 -> 0.01227272727 | G70: %/veículo.mês
E71: 2 a 3 anos | F71: ='Depre e Rem Gen'!M21 -> 0.01090909091 | G71: %/veículo.mês
E72: 3 a 4 anos | F72: ='Depre e Rem Gen'!M22 -> 0.009545454545 | G72: %/veículo.mês
E73: 4 a 5 anos | F73: ='Depre e Rem Gen'!M23 -> 0.008181818182 | G73: %/veículo.mês
E74: 5 a 6 anos | F74: ='Depre e Rem Gen'!M24 -> 0.006818181818 | G74: %/veículo.mês
E75: 6 a 7 anos | F75: ='Depre e Rem Gen'!M25 -> 0.005454545455 | G75: %/veículo.mês
E76: 7 a 8 anos | F76: ='Depre e Rem Gen'!M26 -> 0.004090909091 | G76: %/veículo.mês
E77: 8 a 9 anos | F77: ='Depre e Rem Gen'!M27 -> 0.002727272727 | G77: %/veículo.mês
E78: 9 a 10 anos | F78: ='Depre e Rem Gen'!M28 -> 0.001363636364 | G78: %/veículo.mês
E79: 10 a 11 anos | F79: ='Depre e Rem Gen'!M29 -> 0 | G79: %/veículo.mês
E80: 11 a 12 anos | F80: ='Depre e Rem Gen'!M30 -> 0 | G80: %/veículo.mês
E81: 12 a 13 anos | F81: ='Depre e Rem Gen'!M31 -> 0 | G81: %/veículo.mês
E82: 13 a 14 anos | F82: ='Depre e Rem Gen'!M32 -> 0 | G82: %/veículo.mês
E83: 14 a 15 anos | F83: ='Depre e Rem Gen'!M33 -> 0 | G83: %/veículo.mês
E84: + de 15 anos | F84: ='Depre e Rem Gen'!M34 -> 0 | G84: %/veículo.mês
D85: Ônibus Leito | E85: 0 a 1 ano | F85: ='Depre e Rem Gen'!S19 -> 0.01363636364 | G85: %/veículo.mês
E86: 1 a 2 anos | F86: ='Depre e Rem Gen'!S20 -> 0.01227272727 | G86: %/veículo.mês
E87: 2 a 3 anos | F87: ='Depre e Rem Gen'!S21 -> 0.01090909091 | G87: %/veículo.mês
E88: 3 a 4 anos | F88: ='Depre e Rem Gen'!S22 -> 0.009545454545 | G88: %/veículo.mês
E89: 4 a 5 anos | F89: ='Depre e Rem Gen'!S23 -> 0.008181818182 | G89: %/veículo.mês
E90: 5 a 6 anos | F90: ='Depre e Rem Gen'!S24 -> 0.006818181818 | G90: %/veículo.mês
E91: 6 a 7 anos | F91: ='Depre e Rem Gen'!S25 -> 0.005454545455 | G91: %/veículo.mês
E92: 7 a 8 anos | F92: ='Depre e Rem Gen'!S26 -> 0.004090909091 | G92: %/veículo.mês
E93: 8 a 9 anos | F93: ='Depre e Rem Gen'!S27 -> 0.002727272727 | G93: %/veículo.mês
E94: 9 a 10 anos | F94: ='Depre e Rem Gen'!S28 -> 0.001363636364 | G94: %/veículo.mês
E95: 10 a 11 anos | F95: ='Depre e Rem Gen'!S29 -> 0 | G95: %/veículo.mês
E96: 11 a 12 anos | F96: ='Depre e Rem Gen'!S30 -> 0 | G96: %/veículo.mês
E97: 12 a 13 anos | F97: ='Depre e Rem Gen'!S31 -> 0 | G97: %/veículo.mês
E98: 13 a 14 anos | F98: ='Depre e Rem Gen'!S32 -> 0 | G98: %/veículo.mês
E99: 14 a 15 anos | F99: ='Depre e Rem Gen'!S33 -> 0 | G99: %/veículo.mês
E100: + de 15 anos | F100: ='Depre e Rem Gen'!S34 -> 0 | G100: %/veículo.mês
D101: Ônibus Misto | E101: 0 a 1 ano | F101: ='Depre e Rem Gen'!Y19 -> 0.01363636364 | G101: %/veículo.mês
E102: 1 a 2 anos | F102: ='Depre e Rem Gen'!Y20 -> 0.01227272727 | G102: %/veículo.mês
E103: 2 a 3 anos | F103: ='Depre e Rem Gen'!Y21 -> 0.01090909091 | G103: %/veículo.mês
E104: 3 a 4 anos | F104: ='Depre e Rem Gen'!Y22 -> 0.009545454545 | G104: %/veículo.mês
E105: 4 a 5 anos | F105: ='Depre e Rem Gen'!Y23 -> 0.008181818182 | G105: %/veículo.mês
E106: 5 a 6 anos | F106: ='Depre e Rem Gen'!Y24 -> 0.006818181818 | G106: %/veículo.mês
E107: 6 a 7 anos | F107: ='Depre e Rem Gen'!Y25 -> 0.005454545455 | G107: %/veículo.mês
E108: 7 a 8 anos | F108: ='Depre e Rem Gen'!Y26 -> 0.004090909091 | G108: %/veículo.mês
E109: 8 a 9 anos | F109: ='Depre e Rem Gen'!Y27 -> 0.002727272727 | G109: %/veículo.mês
E110: 9 a 10 anos | F110: ='Depre e Rem Gen'!Y28 -> 0.001363636364 | G110: %/veículo.mês
E111: 10 a 11 anos | F111: ='Depre e Rem Gen'!Y29 -> 0 | G111: %/veículo.mês
E112: 11 a 12 anos | F112: ='Depre e Rem Gen'!Y30 -> 0 | G112: %/veículo.mês
E113: 12 a 13 anos | F113: ='Depre e Rem Gen'!Y31 -> 0 | G113: %/veículo.mês
E114: 13 a 14 anos | F114: ='Depre e Rem Gen'!Y32 -> 0 | G114: %/veículo.mês
E115: 14 a 15 anos | F115: ='Depre e Rem Gen'!Y33 -> 0 | G115: %/veículo.mês
E116: + de 15 anos | F116: ='Depre e Rem Gen'!Y34 -> 0 | G116: %/veículo.mês
D117: Outro | E117: 0 a 1 ano | F117: ='Depre e Rem Gen'!AE19 -> 0.01363636364 | G117: %/veículo.mês
E118: 1 a 2 anos | F118: ='Depre e Rem Gen'!AE20 -> 0.01227272727 | G118: %/veículo.mês
E119: 2 a 3 anos | F119: ='Depre e Rem Gen'!AE21 -> 0.01090909091 | G119: %/veículo.mês
E120: 3 a 4 anos | F120: ='Depre e Rem Gen'!AE22 -> 0.009545454545 | G120: %/veículo.mês
E121: 4 a 5 anos | F121: ='Depre e Rem Gen'!AE23 -> 0.008181818182 | G121: %/veículo.mês
E122: 5 a 6 anos | F122: ='Depre e Rem Gen'!AE24 -> 0.006818181818 | G122: %/veículo.mês
E123: 6 a 7 anos | F123: ='Depre e Rem Gen'!AE25 -> 0.005454545455 | G123: %/veículo.mês
E124: 7 a 8 anos | F124: ='Depre e Rem Gen'!AE26 -> 0.004090909091 | G124: %/veículo.mês
E125: 8 a 9 anos | F125: ='Depre e Rem Gen'!AE27 -> 0.002727272727 | G125: %/veículo.mês
E126: 9 a 10 anos | F126: ='Depre e Rem Gen'!AE28 -> 0.001363636364 | G126: %/veículo.mês
E127: 10 a 11 anos | F127: ='Depre e Rem Gen'!AE29 -> 0 | G127: %/veículo.mês
E128: 11 a 12 anos | F128: ='Depre e Rem Gen'!AE30 -> 0 | G128: %/veículo.mês
E129: 12 a 13 anos | F129: ='Depre e Rem Gen'!AE31 -> 0 | G129: %/veículo.mês
E130: 13 a 14 anos | F130: ='Depre e Rem Gen'!AE32 -> 0 | G130: %/veículo.mês
E131: 14 a 15 anos | F131: ='Depre e Rem Gen'!AE33 -> 0 | G131: %/veículo.mês
E132: + de 15 anos | F132: ='Depre e Rem Gen'!AE34 -> 0 | G132: %/veículo.mês
B134: COEFICIENTE DE DEPRECIAÇÃO MENSAL DE OUTROS ATIVOS | C134: Edificações | G134: %/mês
C135: Equipamentos de Garagem | G135: %/mês
C136: Equipamentos de Bilhetagem Eletrônica e ITS | G136: %/mês
C137: Outras Máquinas e Equipamentos | G137: %/mês
C138: Veículos de Apoio | D138: Caminhão-oficina | G138: %/mês
D139: Caminhão-guincho | G139: %/mês
D140: Caminhoneta | G140: %/mês
D141: Automóvel Básico | G141: %/mês
D142: Motocicleta | G142: %/mês
C143: Coeficiente Geral de Depreciação Mensal de Outros Ativos | G143: (% do PVNC/veículomês)
B145: COEFICIENTE DE REMUNERAÇÃO MENSAL DA FROTA | D145: Micro-Ônibus | E145: 0 a 1 ano | F145: ='Depre e Rem Gen'!G42 -> 0.01 | G145: %/veículo.mês
E146: 1 a 2 anos | F146: ='Depre e Rem Gen'!G43 -> 0.008363636364 | G146: %/veículo.mês
E147: 2 a 3 anos | F147: ='Depre e Rem Gen'!G44 -> 0.006890909091 | G147: %/veículo.mês
E148: 3 a 4 anos | F148: ='Depre e Rem Gen'!G45 -> 0.005581818182 | G148: %/veículo.mês
E149: 4 a 5 anos | F149: ='Depre e Rem Gen'!G46 -> 0.004436363636 | G149: %/veículo.mês
E150: 5 a 6 anos | F150: ='Depre e Rem Gen'!G47 -> 0.003454545455 | G150: %/veículo.mês
E151: 6 a 7 anos | F151: ='Depre e Rem Gen'!G48 -> 0.002636363636 | G151: %/veículo.mês
E152: 7 a 8 anos | F152: ='Depre e Rem Gen'!G49 -> 0.001981818182 | G152: %/veículo.mês
E153: 8 a 9 anos | F153: ='Depre e Rem Gen'!G50 -> 0.001490909091 | G153: %/veículo.mês
E154: 9 a 10 anos | F154: ='Depre e Rem Gen'!G51 -> 0.001163636364 | G154: %/veículo.mês
E155: 10 a 11 anos | F155: ='Depre e Rem Gen'!G52 -> 0.001 | G155: %/veículo.mês
E156: 11 a 12 anos | F156: ='Depre e Rem Gen'!G53 -> 0.001 | G156: %/veículo.mês
E157: 12 a 13 anos | F157: ='Depre e Rem Gen'!G54 -> 0.001 | G157: %/veículo.mês
E158: 13 a 14 anos | F158: ='Depre e Rem Gen'!G55 -> 0.001 | G158: %/veículo.mês
E159: 14 a 15 anos | F159: ='Depre e Rem Gen'!G56 -> 0.001 | G159: %/veículo.mês
E160: + de 15 anos | F160: ='Depre e Rem Gen'!G57 -> 0.001 | G160: %/veículo.mês
D161: Ônibus Convencional | E161: 0 a 1 ano | F161: ='Depre e Rem Gen'!M42 -> 0.01 | G161: %/veículo.mês
E162: 1 a 2 anos | F162: ='Depre e Rem Gen'!M43 -> 0.008363636364 | G162: %/veículo.mês
E163: 2 a 3 anos | F163: ='Depre e Rem Gen'!M44 -> 0.006890909091 | G163: %/veículo.mês
E164: 3 a 4 anos | F164: ='Depre e Rem Gen'!M45 -> 0.005581818182 | G164: %/veículo.mês
E165: 4 a 5 anos | F165: ='Depre e Rem Gen'!M46 -> 0.004436363636 | G165: %/veículo.mês
E166: 5 a 6 anos | F166: ='Depre e Rem Gen'!M47 -> 0.003454545455 | G166: %/veículo.mês
E167: 6 a 7 anos | F167: ='Depre e Rem Gen'!M48 -> 0.002636363636 | G167: %/veículo.mês
E168: 7 a 8 anos | F168: ='Depre e Rem Gen'!M49 -> 0.001981818182 | G168: %/veículo.mês
E169: 8 a 9 anos | F169: ='Depre e Rem Gen'!M50 -> 0.001490909091 | G169: %/veículo.mês
E170: 9 a 10 anos | F170: ='Depre e Rem Gen'!M51 -> 0.001163636364 | G170: %/veículo.mês
E171: 10 a 11 anos | F171: ='Depre e Rem Gen'!M52 -> 0.001 | G171: %/veículo.mês
E172: 11 a 12 anos | F172: ='Depre e Rem Gen'!M53 -> 0.001 | G172: %/veículo.mês
E173: 12 a 13 anos | F173: ='Depre e Rem Gen'!M54 -> 0.001 | G173: %/veículo.mês
E174: 13 a 14 anos | F174: ='Depre e Rem Gen'!M55 -> 0.001 | G174: %/veículo.mês
E175: 14 a 15 anos | F175: ='Depre e Rem Gen'!M56 -> 0.001 | G175: %/veículo.mês
E176: + de 15 anos | F176: ='Depre e Rem Gen'!M57 -> 0.001 | G176: %/veículo.mês
D177: Ônibus Leito | E177: 0 a 1 ano | F177: ='Depre e Rem Gen'!S42 -> 0.01 | G177: %/veículo.mês
E178: 1 a 2 anos | F178: ='Depre e Rem Gen'!S43 -> 0.008363636364 | G178: %/veículo.mês
E179: 2 a 3 anos | F179: ='Depre e Rem Gen'!S44 -> 0.006890909091 | G179: %/veículo.mês
E180: 3 a 4 anos | F180: ='Depre e Rem Gen'!S45 -> 0.005581818182 | G180: %/veículo.mês
E181: 4 a 5 anos | F181: ='Depre e Rem Gen'!S46 -> 0.004436363636 | G181: %/veículo.mês
E182: 5 a 6 anos | F182: ='Depre e Rem Gen'!S47 -> 0.003454545455 | G182: %/veículo.mês
E183: 6 a 7 anos | F183: ='Depre e Rem Gen'!S48 -> 0.002636363636 | G183: %/veículo.mês
E184: 7 a 8 anos | F184: ='Depre e Rem Gen'!S49 -> 0.001981818182 | G184: %/veículo.mês
E185: 8 a 9 anos | F185: ='Depre e Rem Gen'!S50 -> 0.001490909091 | G185: %/veículo.mês
E186: 9 a 10 anos | F186: ='Depre e Rem Gen'!S51 -> 0.001163636364 | G186: %/veículo.mês
E187: 10 a 11 anos | F187: ='Depre e Rem Gen'!S52 -> 0.001 | G187: %/veículo.mês
E188: 11 a 12 anos | F188: ='Depre e Rem Gen'!S53 -> 0.001 | G188: %/veículo.mês
E189: 12 a 13 anos | F189: ='Depre e Rem Gen'!S54 -> 0.001 | G189: %/veículo.mês
E190: 13 a 14 anos | F190: ='Depre e Rem Gen'!S55 -> 0.001 | G190: %/veículo.mês
E191: 14 a 15 anos | F191: ='Depre e Rem Gen'!S56 -> 0.001 | G191: %/veículo.mês
E192: + de 15 anos | F192: ='Depre e Rem Gen'!S57 -> 0.001 | G192: %/veículo.mês
D193: Ônibus Misto | E193: 0 a 1 ano | F193: ='Depre e Rem Gen'!Y42 -> 0.01 | G193: %/veículo.mês
E194: 1 a 2 anos | F194: ='Depre e Rem Gen'!Y43 -> 0.008363636364 | G194: %/veículo.mês
E195: 2 a 3 anos | F195: ='Depre e Rem Gen'!Y44 -> 0.006890909091 | G195: %/veículo.mês
E196: 3 a 4 anos | F196: ='Depre e Rem Gen'!Y45 -> 0.005581818182 | G196: %/veículo.mês
E197: 4 a 5 anos | F197: ='Depre e Rem Gen'!Y46 -> 0.004436363636 | G197: %/veículo.mês
E198: 5 a 6 anos | F198: ='Depre e Rem Gen'!Y47 -> 0.003454545455 | G198: %/veículo.mês
E199: 6 a 7 anos | F199: ='Depre e Rem Gen'!Y48 -> 0.002636363636 | G199: %/veículo.mês
E200: 7 a 8 anos | F200: ='Depre e Rem Gen'!Y49 -> 0.001981818182 | G200: %/veículo.mês
E201: 8 a 9 anos | F201: ='Depre e Rem Gen'!Y50 -> 0.001490909091 | G201: %/veículo.mês
E202: 9 a 10 anos | F202: ='Depre e Rem Gen'!Y51 -> 0.001163636364 | G202: %/veículo.mês
E203: 10 a 11 anos | F203: ='Depre e Rem Gen'!Y52 -> 0.001 | G203: %/veículo.mês
E204: 11 a 12 anos | F204: ='Depre e Rem Gen'!Y53 -> 0.001 | G204: %/veículo.mês
E205: 12 a 13 anos | F205: ='Depre e Rem Gen'!Y54 -> 0.001 | G205: %/veículo.mês
E206: 13 a 14 anos | F206: ='Depre e Rem Gen'!Y55 -> 0.001 | G206: %/veículo.mês
E207: 14 a 15 anos | F207: ='Depre e Rem Gen'!Y56 -> 0.001 | G207: %/veículo.mês
E208: + de 15 anos | F208: ='Depre e Rem Gen'!Y57 -> 0.001 | G208: %/veículo.mês
D209: Outro | E209: 0 a 1 ano | F209: ='Depre e Rem Gen'!AE42 -> 0.01 | G209: %/veículo.mês
E210: 1 a 2 anos | F210: ='Depre e Rem Gen'!AE43 -> 0.008363636364 | G210: %/veículo.mês
E211: 2 a 3 anos | F211: ='Depre e Rem Gen'!AE44 -> 0.006890909091 | G211: %/veículo.mês
E212: 3 a 4 anos | F212: ='Depre e Rem Gen'!AE45 -> 0.005581818182 | G212: %/veículo.mês
E213: 4 a 5 anos | F213: ='Depre e Rem Gen'!AE46 -> 0.004436363636 | G213: %/veículo.mês
E214: 5 a 6 anos | F214: ='Depre e Rem Gen'!AE47 -> 0.003454545455 | G214: %/veículo.mês
E215: 6 a 7 anos | F215: ='Depre e Rem Gen'!AE48 -> 0.002636363636 | G215: %/veículo.mês
E216: 7 a 8 anos | F216: ='Depre e Rem Gen'!AE49 -> 0.001981818182 | G216: %/veículo.mês
E217: 8 a 9 anos | F217: ='Depre e Rem Gen'!AE50 -> 0.001490909091 | G217: %/veículo.mês
E218: 9 a 10 anos | F218: ='Depre e Rem Gen'!AE51 -> 0.001163636364 | G218: %/veículo.mês
E219: 10 a 11 anos | F219: ='Depre e Rem Gen'!AE52 -> 0.001 | G219: %/veículo.mês
E220: 11 a 12 anos | F220: ='Depre e Rem Gen'!AE53 -> 0.001 | G220: %/veículo.mês
E221: 12 a 13 anos | F221: ='Depre e Rem Gen'!AE54 -> 0.001 | G221: %/veículo.mês
E222: 13 a 14 anos | F222: ='Depre e Rem Gen'!AE55 -> 0.001 | G222: %/veículo.mês
... 34 more rows

Sheet Planilha
C2: Documento Preliminar Sujeito a Modificações
C4: GOVERNO DO ESTADO DO PARANÁ
C6: DEPARTAMENTO DE ESTRADAS DE RODAGEM
C9: ESTUDO DOS CUSTOS DO SERVIÇO RODOVIÁRIO DO SISTEMA DE TRANSPORTE PÚBLICO DE PASSAGEIROS DO ESTADO DO PARANÁ
C14: CÁLCULO DOS CUSTOS
C16: =Insumos!$G$15 -> 2024-06-01
B20: RUBRICA | F20: UNIDADE | G20: VALOR | H20: OPERAÇÃO
B22: 1. INSUMOS BÁSICOS
B24: PREÇO DE UM LITRO DE COMBUSTÍVEL | F24: R$/litro | G24: =Insumos!G302 -> 0 | H24: 1
B26: SALÁRIO MÉDIO | D26: Motorista | F26: R$/funcionário.mês | G26: =Insumos!G304 -> 0 | H26: =H24+1 -> 2
D27: Cobrador | F27: R$/funcionário.mês | G27: =Insumos!G305 -> 0 | H27: =H26+1 -> 3
D28: Fiscal/Despachante | F28: R$/funcionário.mês | G28: =Insumos!G306 -> 0 | H28: =H27+1 -> 4
B31: 2. PREÇO DO VEÍCULO-PADRÃO
B33: 2.1 PREÇO DO VEÍCULO-PADRÃO COMPLETO
B35: PREÇO DO VEÍCULO-PADRÃO COMPLETO SEM AR CONDICIONADO | D35: Micro-Ônibus | F35: R$/veículo | G35: =Insumos!G325 -> 0 | H35: =H28+1 -> 5
D36: Ônibus Convencional | F36: R$/veículo | G36: =Insumos!G326 -> 0 | H36: =H35+1 -> 6
D37: Ônibus Leito | F37: R$/veículo | G37: =Insumos!G327 -> 0 | H37: 7
D38: Ônibus Misto | F38: R$/veículo | G38: =Insumos!G328 -> 0 | H38: =H37+1 -> 8
D39: Outro | F39: R$/veículo | G39: =Insumos!G329 -> 0 | H39: =H38+1 -> 9
B40: PREÇO DO VEÍCULO-PADRÃO COMPLETO COM AR CONDICIONADO | D40: Micro-Ônibus | F40: R$/veículo | G40: =Insumos!G346 -> 0 | H40: 10
D41: Ônibus Convencional | F41: R$/veículo | G41: =Insumos!G347 -> 0 | H41: 11
D42: Ônibus Leito | F42: R$/veículo | G42: =Insumos!G348 -> 0 | H42: 12
D43: Ônibus Misto | F43: R$/veículo | G43: =Insumos!G349 -> 0 | H43: 13
D44: Outro | F44: R$/veículo | G44: =Insumos!G350 -> 0 | H44: 14
B45: PREÇO MÉDIO DO VEÍCULO-PADRÃO COMPLETO | D45: Micro-Ônibus | F45: R$/veículo | G45: =Insumos!G353 -> 0 | H45: 15
D46: Ônibus Convencional | F46: R$/veículo | G46: =Insumos!G354 -> 0 | H46: 16
D47: Ônibus Leito | F47: R$/veículo | G47: =Insumos!G355 -> 0 | H47: 17
D48: Ônibus Misto | F48: R$/veículo | G48: =Insumos!G356 -> 0 | H48: 18
D49: Outro | F49: R$/veículo | G49: =Insumos!G357 -> 0 | H49: 19
D50: Veículo-Padrão | F50: R$/veículo | G50: =Insumos!G358 -> 0 | H50: 20
B52: 2.2 PREÇO DO VEÍCULO-PADRÃO SEM A RODAGEM
B54: PREÇO DO VEÍCULO-PADRÃO SEM A RODAGEM SEM AR CONDICIONADO | D54: Micro-Ônibus | F54: R$/veículo | G54: =IF(G35=0,0,G35-G93) -> 0 | H54: =H50+1 -> 21 | K54: =H54 -> 21 | L54: = | M54: =H35 -> 5 | N54: - | O54: =H93 -> 57
D55: Ônibus Convencional | F55: R$/veículo | G55: =IF(G36=0,0,G36-G94) -> 0 | H55: =H54+1 -> 22 | K55: 22 | L55: = | M55: 6 | N55: - | O55: =H94 -> 58
D56: Ônibus Leito | F56: R$/veículo | G56: =IF(G37=0,0,G37-G95) -> 0 | H56: 23 | K56: 23 | L56: = | M56: 7 | N56: - | O56: =H95 -> 59
D57: Ônibus Misto | F57: R$/veículo | G57: =IF(G38=0,0,G38-G96) -> 0 | H57: 24 | K57: 24 | L57: = | M57: 8 | N57: - | O57: =H96 -> 60
D58: Outro | F58: R$/veículo | G58: =IF(G39=0,0,G39-G98) -> 0 | H58: 25 | K58: =H58 -> 25 | L58: = | M58: 9 | N58: - | O58: =H98 -> 62
B59: PREÇO DO VEÍCULO-PADRÃO SEM A RODAGEM COM AR CONDICIONADO | D59: Micro-Ônibus | F59: R$/veículo | G59: =IF(G40=0,0,G40-G93) -> 0 | H59: 26 | K59: 26 | L59: = | M59: 10 | N59: - | O59: =H93 -> 57
D60: Ônibus Convencional | F60: R$/veículo | G60: =IF(G41=0,0,G41-G94) -> 0 | H60: 27 | K60: 27 | L60: = | M60: 11 | N60: - | O60: =H94 -> 58
D61: Ônibus Leito | F61: R$/veículo | G61: =IF(G42=0,0,G42-G95) -> 0 | H61: 28 | K61: 28 | L61: = | M61: 12 | N61: - | O61: =H95 -> 59
D62: Ônibus Misto | F62: R$/veículo | G62: =IF(G43=0,0,G43-G96) -> 0 | H62: 29 | K62: 29 | L62: = | M62: 13 | N62: - | O62: =H96 -> 60
D63: Outro | F63: R$/veículo | G63: =IF(G44=0,0,G44-G98) -> 0 | H63: 30 | K63: =H63 -> 30 | L63: = | M63: 14 | N63: - | O63: =H98 -> 62
B64: PREÇO MÉDIO DO VEÍCULO-PADRÃO SEM A RODAGEM | D64: Micro-Ônibus | F64: R$/veículo | G64: =IF(G45=0,0,G45-G93) -> 0 | H64: 31 | K64: 31 | L64: = | M64: 15 | N64: - | O64: =H93 -> 57
D65: Ônibus Convencional | F65: R$/veículo | G65: =IF(G46=0,0,G46-G94) -> 0 | H65: 32 | K65: 32 | L65: = | M65: 16 | N65: - | O65: =H94 -> 58
D66: Ônibus Leito | F66: R$/veículo | G66: =IF(G47=0,0,G47-G95) -> 0 | H66: 33 | K66: 33 | L66: = | M66: 17 | N66: - | O66: =H95 -> 59
D67: Ônibus Misto | F67: R$/veículo | G67: =IF(G48=0,0,G48-G96) -> 0 | H67: 34 | K67: 34 | L67: = | M67: 18 | N67: - | O67: =H96 -> 60
D68: Outro | F68: R$/veículo | G68: =IF(G49=0,0,G49-G98) -> 0 | H68: 35 | K68: =H68 -> 35 | L68: = | M68: 19 | N68: - | O68: =H98 -> 62
D69: Veículo-Padrão | F69: R$/veículo | G69: =G50-G98 ->  | H69: 36 | K69: 36 | L69: = | M69: 20 | N69: - | O69: =H98 -> 62
B71: 3. PREÇO DA RODAGEM
B73: PREÇO DO PNEU | D73: Micro-Ônibus | F73: R$/unidade | G73: =Insumos!G375 -> 0 | H73: =H69+1 -> 37
D74: Ônibus Convencional | F74: R$/unidade | G74: =Insumos!G376 -> 0 | H74: =H73+1 -> 38
D75: Ônibus Leito | F75: R$/unidade | G75: =Insumos!G377 -> 0 | H75: =H74+1 -> 39
D76: Ônibus Misto | F76: R$/unidade | G76: =Insumos!G378 -> 0 | H76: 40
D77: Outro | F77: R$/unidade | G77: =Insumos!G379 -> 0 | H77: 41
B78: PREÇO DA RECAPAGEM | D78: Micro-Ônibus | F78: R$/unidade | G78: =Insumos!G380 -> 0 | H78: 42
D79: Ônibus Convencional | F79: R$/unidade | G79: =Insumos!G381 -> 0 | H79: 43
D80: Ônibus Leito | F80: R$/unidade | G80: =Insumos!G382 -> 0 | H80: 44
D81: Ônibus Misto | F81: R$/unidade | G81: =Insumos!G383 -> 0 | H81: 45
D82: Outro | F82: R$/unidade | G82: =Insumos!G384 -> 0 | H82: 46
B83: PREÇO DA CÂMARA | D83: Micro-Ônibus | F83: R$/unidade | G83: =Insumos!G385 -> 0 | H83: 47
D84: Ônibus Convencional | F84: R$/unidade | G84: =Insumos!G386 -> 0 | H84: 48
D85: Ônibus Leito | F85: R$/unidade | G85: =Insumos!G387 -> 0 | H85: 49
D86: Ônibus Misto | F86: R$/unidade | G86: =Insumos!G388 -> 0 | H86: 50
D87: Outro | F87: R$/unidade | G87: =Insumos!G389 -> 0 | H87: 51
B88: PREÇO DO PROTETOR | D88: Micro-Ônibus | F88: R$/unidade | G88: =Insumos!G390 -> 0 | H88: 52
D89: Ônibus Convencional | F89: R$/unidade | G89: =Insumos!G391 -> 0 | H89: 53
D90: Ônibus Leito | F90: R$/unidade | G90: =Insumos!G392 -> 0 | H90: 54
D91: Ônibus Misto | F91: R$/unidade | G91: =Insumos!G393 -> 0 | H91: 55
D92: Outro | F92: R$/unidade | G92: =Insumos!G394 -> 0 | H92: 56
B93: PREÇO DA RODAGEM | C93: (para o cálculo dos custos fixos) | D93: Micro-Ônibus | F93: R$/veículo | G93: =6*(G73+G83+G88) -> 0 | H93: 57 | K93: =H93 -> 57 | L93: = | M93: 6 x ( | N93: =H73 -> 37 | O93: + | P93: =H83 -> 47 | Q93: + | R93: =H88 -> 52 | S93: )
D94: Ônibus Convencional | F94: R$/veículo | G94: =6*(G74+G84+G89) -> 0 | H94: 58 | K94: 58 | L94: = | M94: 6 x ( | N94: =H74 -> 38 | O94: + | P94: =H84 -> 48 | Q94: + | R94: =H89 -> 53 | S94: )
D95: Ônibus Leito | F95: R$/veículo | G95: =6*(G75+G85+G90) -> 0 | H95: 59 | K95: 59 | L95: = | M95: 6 x ( | N95: =H75 -> 39 | O95: + | P95: =H85 -> 49 | Q95: + | R95: =H90 -> 54 | S95: )
D96: Ônibus Misto | F96: R$/veículo | G96: =10*(G76+G86+G91) -> 0 | H96: 60 | K96: 60 | L96: = | M96: 10 x ( | N96: =H76 -> 40 | O96: + | P96: =H86 -> 50 | Q96: + | R96: =H91 -> 55 | S96: )
D97: Outro | F97: R$/veículo | G97: =14*(G77+G87+G92) -> 0 | H97: 61 | K97: =H97 -> 61 | L97: = | M97: 14 x ( | N97: =H77 -> 41 | O97: + | P97: =H87 -> 51 | Q97: + | R97: =H92 -> 56 | S97: )
D98: Veículo-Padrão | F98: R$/veículo | G98: =(G93*G396+G94*G397+G95*G398+G96*G399+G97*G401)/G401 ->  | H98: 62 | K98: 62 | L98: = | M98: ( | N98: =H93 -> 57 | O98: x | P98: =H396 -> 299 | Q98: + | R98: =H94 -> 58 | S98: x | T98: =H397 -> 300 | U98: + | V98: =H95 -> 59 | W98: x | X98: =H398 -> 301 | Y98: + | Z98: =H96 -> 60 | AA98: x | AB98: =H399 -> 302 | AC98: ) / | AD98: =K401 -> 304
C99: (para o cálculo dos custos variáveis) | D99: Micro-Ônibus | F99: R$/veículo | G99: =6*(G73+Coeficientes!$F$45*G78+Coeficientes!$F$46*G83+Coeficientes!$F$47*G88) -> 0 | H99: 63 | K99: 63 | L99: = | M99: 6 x ( | N99: =H73 -> 37 | O99: + | P99: =Coeficientes!$F$45 -> 0 | Q99: x | R99: =H78 -> 42 | S99: + | T99: =Coeficientes!$F$46 -> 0 | U99: x | V99: =H83 -> 47 | W99: + | X99: =Coeficientes!$F$47 -> 0 | Y99: x | Z99: =H88 -> 52 | AA99: )
D100: Ônibus Convencional | F100: R$/veículo | G100: =6*(G74+Coeficientes!$F$45*G79+Coeficientes!$F$46*G84+Coeficientes!$F$47*G89) -> 0 | H100: 64 | K100: 64 | L100: = | M100: 6 x ( | N100: =H74 -> 38 | O100: + | P100: =Coeficientes!$F$45 -> 0 | Q100: x | R100: =H79 -> 43 | S100: + | T100: =Coeficientes!$F$46 -> 0 | U100: x | V100: =H84 -> 48 | W100: + | X100: =Coeficientes!$F$47 -> 0 | Y100: x | Z100: =H89 -> 53 | AA100: )
D101: Ônibus Leito | F101: R$/veículo | G101: =6*(G75+Coeficientes!$F$45*G80+Coeficientes!$F$46*G85+Coeficientes!$F$47*G90) -> 0 | H101: 65 | K101: 65 | L101: = | M101: 6 x ( | N101: =H75 -> 39 | O101: + | P101: =Coeficientes!$F$45 -> 0 | Q101: x | R101: =H80 -> 44 | S101: + | T101: =Coeficientes!$F$46 -> 0 | U101: x | V101: =H85 -> 49 | W101: + | X101: =Coeficientes!$F$47 -> 0 | Y101: x | Z101: =H90 -> 54 | AA101: )
D102: Ônibus Misto | F102: R$/veículo | G102: =10*(G76+Coeficientes!$F$45*G81+Coeficientes!$F$46*G86+Coeficientes!$F$47*G91) -> 0 | H102: 66 | K102: 66 | L102: = | M102: 10 x ( | N102: =H76 -> 40 | O102: + | P102: =Coeficientes!$F$45 -> 0 | Q102: x | R102: =H81 -> 45 | S102: + | T102: =Coeficientes!$F$46 -> 0 | U102: x | V102: =H86 -> 50 | W102: + | X102: =Coeficientes!$F$47 -> 0 | Y102: x | Z102: =H91 -> 55 | AA102: )
D103: Outro | F103: R$/veículo | G103: =14*(G77+Coeficientes!$F$45*G82+Coeficientes!$F$46*G87+Coeficientes!$F$47*G92) -> 0 | H103: 67 | K103: =H103 -> 67 | L103: = | M103: 14 x ( | N103: =H77 -> 41 | O103: + | P103: =Coeficientes!$F$45 -> 0 | Q103: x | R103: =H82 -> 46 | S103: + | T103: =Coeficientes!$F$46 -> 0 | U103: x | V103: =H87 -> 51 | W103: + | X103: =Coeficientes!$F$47 -> 0 | Y103: x | Z103: =H92 -> 56 | AA103: )
B105: 4. INFORMAÇÕES OPERACIONAIS
B107: 4.1 DEMANDA EQUIVALENTE
B109: QUANTIDADE DE PASSAGEIROS EQUIVALENTES | F109: pass./mês | G109: =ROUND(Insumos!G29,0) -> 0 | H109: =H103+1 -> 68
B111: OCUPAÇÃO MÉDIA | F111: passs/viagem | G111: =Insumos!G31 -> 0 | H111: =H109+1 -> 69
B113: 4.2 DISTRIBUIÇÃO ETÁRIA DA FROTA
B115: DISTRIBUIÇÃO ETÁRIA DA FFROTA SEM AR CONDICIONADO | D115: Micro-Ônibus | E115: 0 a 1 ano | F115: veículos | G115: =Insumos!G121 -> 0 | H115: =H111+1 -> 70
E116: 1 a 2 anos | F116: veículos | G116: =Insumos!G122 -> 0 | H116: =H115+1 -> 71
E117: 2 a 3 anos | F117: veículos | G117: =Insumos!G123 -> 0 | H117: =H116+1 -> 72
E118: 3 a 4 anos | F118: veículos | G118: =Insumos!G124 -> 0 | H118: 73
E119: 4 a 5 anos | F119: veículos | G119: =Insumos!G125 -> 0 | H119: 74
E120: 5 a 6 anos | F120: veículos | G120: =Insumos!G126 -> 0 | H120: 75
E121: 6 a 7 anos | F121: veículos | G121: =Insumos!G127 -> 0 | H121: 76
E122: 7 a 8 anos | F122: veículos | G122: =Insumos!G128 -> 0 | H122: 77
E123: 8 a 9 anos | F123: veículos | G123: =Insumos!G129 -> 0 | H123: 78
E124: 9 a 10 anos | F124: veículos | G124: =Insumos!G130 -> 0 | H124: 79
E125: 10 a 11 anos | F125: veículos | G125: =Insumos!G131 -> 0 | H125: 80
E126: 11 a 12 anos | F126: veículos | G126: =Insumos!G132 -> 0 | H126: 81
E127: 12 a 13 anos | F127: veículos | G127: =Insumos!G133 -> 0 | H127: 82
E128: 13 a 14 anos | F128: veículos | G128: =Insumos!G134 -> 0 | H128: 83
E129: 14 a 15 anos | F129: veículos | G129: =Insumos!G135 -> 0 | H129: 84
E130: + de 15 anos | F130: veículos | G130: =Insumos!G136 -> 0 | H130: 85
E131: Total | F131: veículos | G131: =SUM(G115:G130) -> 0 | H131: 86 | K131: =H131 -> 86 | L131: = | M131: soma ( | N131: =H115 -> 70 | O131: : | P131: =H130 -> 85 | Q131: )
B133: DISTRIBUIÇÃO ETÁRIA DA FROTA SEM AR CONDICIONADO | D133: Ônibus Convencional | E133: 0 a 1 ano | F133: veículos | G133: =Insumos!G138 -> 0 | H133: =H131+1 -> 87
E134: 1 a 2 anos | F134: veículos | G134: =Insumos!G139 -> 0 | H134: 88
E135: 2 a 3 anos | F135: veículos | G135: =Insumos!G140 -> 0 | H135: 89
E136: 3 a 4 anos | F136: veículos | G136: =Insumos!G141 -> 0 | H136: 90
E137: 4 a 5 anos | F137: veículos | G137: =Insumos!G142 -> 0 | H137: 91
E138: 5 a 6 anos | F138: veículos | G138: =Insumos!G143 -> 0 | H138: 92
E139: 6 a 7 anos | F139: veículos | G139: =Insumos!G144 -> 0 | H139: 93
E140: 7 a 8 anos | F140: veículos | G140: =Insumos!G145 -> 0 | H140: 94
E141: 8 a 9 anos | F141: veículos | G141: =Insumos!G146 -> 0 | H141: 95
E142: 9 a 10 anos | F142: veículos | G142: =Insumos!G147 -> 0 | H142: 96
E143: 10 a 11 anos | F143: veículos | G143: =Insumos!G148 -> 0 | H143: 97
E144: 11 a 12 anos | F144: veículos | G144: =Insumos!G149 -> 0 | H144: 98
E145: 12 a 13 anos | F145: veículos | G145: =Insumos!G150 -> 0 | H145: 99
E146: 13 a 14 anos | F146: veículos | G146: =Insumos!G151 -> 0 | H146: 100
E147: 14 a 15 anos | F147: veículos | G147: =Insumos!G152 -> 0 | H147: 101
E148: + de 15 anos | F148: veículos | G148: =Insumos!G153 -> 0 | H148: =H147+1 -> 102
E149: Total | F149: veículos | G149: =SUM(G133:G148) -> 0 | H149: =H148+1 -> 103 | K149: =H149 -> 103 | L149: = | M149: soma ( | N149: =H133 -> 87 | O149: : | P149: =H148 -> 102 | Q149: )
B151: DISTRIBUIÇÃO ETÁRIA DA FROTA SEM AR CONDICIONADO | D151: Ônibus Leito | E151: 0 a 1 ano | F151: veículos | G151: =Insumos!G155 -> 0 | H151: =H149+1 -> 104
E152: 1 a 2 anos | F152: veículos | G152: =Insumos!G156 -> 0 | H152: =H151+1 -> 105
E153: 2 a 3 anos | F153: veículos | G153: =Insumos!G157 -> 0 | H153: =H152+1 -> 106
E154: 3 a 4 anos | F154: veículos | G154: =Insumos!G158 -> 0 | H154: 107
E155: 4 a 5 anos | F155: veículos | G155: =Insumos!G159 -> 0 | H155: 108
E156: 5 a 6 anos | F156: veículos | G156: =Insumos!G160 -> 0 | H156: 109
E157: 6 a 7 anos | F157: veículos | G157: =Insumos!G161 -> 0 | H157: 110
E158: 7 a 8 anos | F158: veículos | G158: =Insumos!G162 -> 0 | H158: 111
E159: 8 a 9 anos | F159: veículos | G159: =Insumos!G163 -> 0 | H159: 112
E160: 9 a 10 anos | F160: veículos | G160: =Insumos!G164 -> 0 | H160: 113
E161: 10 a 11 anos | F161: veículos | G161: =Insumos!G165 -> 0 | H161: 114
E162: 11 a 12 anos | F162: veículos | G162: =Insumos!G166 -> 0 | H162: 115
E163: 12 a 13 anos | F163: veículos | G163: =Insumos!G167 -> 0 | H163: 116
E164: 13 a 14 anos | F164: veículos | G164: =Insumos!G168 -> 0 | H164: 117
E165: 14 a 15 anos | F165: veículos | G165: =Insumos!G169 -> 0 | H165: 118
E166: + de 15 anos | F166: veículos | G166: =Insumos!G170 -> 0 | H166: 119
E167: Total | F167: veículos | G167: =SUM(G151:G166) -> 0 | H167: 120 | K167: =H167 -> 120 | L167: = | M167: soma ( | N167: =H151 -> 104 | O167: : | P167: =H166 -> 119 | Q167: )
B169: DISTRIBUIÇÃO ETÁRIA DA FROTA SEM AR CONDICIONADO | D169: Ônibus Misto | E169: 0 a 1 ano | F169: veículos | G169: =Insumos!G172 -> 0 | H169: =H167+1 -> 121
E170: 1 a 2 anos | F170: veículos | G170: =Insumos!G173 -> 0 | H170: =H169+1 -> 122
E171: 2 a 3 anos | F171: veículos | G171: =Insumos!G174 -> 0 | H171: =H170+1 -> 123
E172: 3 a 4 anos | F172: veículos | G172: =Insumos!G175 -> 0 | H172: 124
E173: 4 a 5 anos | F173: veículos | G173: =Insumos!G176 -> 0 | H173: 125
E174: 5 a 6 anos | F174: veículos | G174: =Insumos!G177 -> 0 | H174: 126
E175: 6 a 7 anos | F175: veículos | G175: =Insumos!G178 -> 0 | H175: 127
E176: 7 a 8 anos | F176: veículos | G176: =Insumos!G179 -> 0 | H176: 128
E177: 8 a 9 anos | F177: veículos | G177: =Insumos!G180 -> 0 | H177: 129
E178: 9 a 10 anos | F178: veículos | G178: =Insumos!G181 -> 0 | H178: 130
E179: 10 a 11 anos | F179: veículos | G179: =Insumos!G182 -> 0 | H179: 131
E180: 11 a 12 anos | F180: veículos | G180: =Insumos!G183 -> 0 | H180: 132
E181: 12 a 13 anos | F181: veículos | G181: =Insumos!G184 -> 0 | H181: 133
E182: 13 a 14 anos | F182: veículos | G182: =Insumos!G185 -> 0 | H182: 134
E183: 14 a 15 anos | F183: veículos | G183: =Insumos!G186 -> 0 | H183: 135
E184: + de 15 anos | F184: veículos | G184: =Insumos!G187 -> 0 | H184: 136
E185: Total | F185: veículos | G185: =SUM(G169:G184) -> 0 | H185: =H184+1 -> 137 | K185: =H185 -> 137 | L185: = | M185: soma ( | N185: =H169 -> 121 | O185: : | P185: =H184 -> 136 | Q185: )
B187: DISTRIBUIÇÃO ETÁRIA DA FROTA SEM AR CONDICIONADO | D187: Outro | E187: 0 a 1 ano | F187: veículos | G187: =Insumos!G189 -> 0 | H187: =H185+1 -> 138
E188: 1 a 2 anos | F188: veículos | G188: =Insumos!G190 -> 0 | H188: =H187+1 -> 139
E189: 2 a 3 anos | F189: veículos | G189: =Insumos!G191 -> 0 | H189: =H188+1 -> 140
E190: 3 a 4 anos | F190: veículos | G190: =Insumos!G192 -> 0 | H190: 141
E191: 4 a 5 anos | F191: veículos | G191: =Insumos!G193 -> 0 | H191: 142
E192: 5 a 6 anos | F192: veículos | G192: =Insumos!G194 -> 0 | H192: 143
E193: 6 a 7 anos | F193: veículos | G193: =Insumos!G195 -> 0 | H193: 144
E194: 7 a 8 anos | F194: veículos | G194: =Insumos!G196 -> 0 | H194: 145
E195: 8 a 9 anos | F195: veículos | G195: =Insumos!G197 -> 0 | H195: 146
E196: 9 a 10 anos | F196: veículos | G196: =Insumos!G198 -> 0 | H196: 147
E197: 10 a 11 anos | F197: veículos | G197: =Insumos!G199 -> 0 | H197: 148
E198: 11 a 12 anos | F198: veículos | G198: =Insumos!G200 -> 0 | H198: 149
E199: 12 a 13 anos | F199: veículos | G199: =Insumos!G201 -> 0 | H199: 150
E200: 13 a 14 anos | F200: veículos | G200: =Insumos!G202 -> 0 | H200: 151
E201: 14 a 15 anos | F201: veículos | G201: =Insumos!G203 -> 0 | H201: 152
E202: + de 15 anos | F202: veículos | G202: =Insumos!G204 -> 0 | H202: 153
E203: Total | F203: veículos | G203: =SUM(G187:G202) -> 0 | H203: 154 | K203: =H203 -> 154 | L203: = | M203: soma ( | N203: =H187 -> 138 | O203: : | P203: =H202 -> 153 | Q203: )
B205: FROTA SEM AR CONDICIONADO | D205: Frota Operante | F205: veículos | G205: =Insumos!G207 -> 0 | H205: =H203+1 -> 155
D206: Frota Reserva | F206: veículos | G206: =G207-G205 -> 0 | H206: =H205+1 -> 156 | K206: =H206 -> 156 | L206: = | M206: =H207 -> 157 | N206: - | O206: =H205 -> 155
D207: Frota Total | F207: veículos | G207: =G131+G149+G167+G185+G203 -> 0 | H207: =H206+1 -> 157 | K207: =H207 -> 157 | L207: = | M207: =H131 -> 86 | N207: + | O207: =H149 -> 103 | P207: + | Q207: =H167 -> 120 | R207: + | S207: =H185 -> 137 | T207: + | U207: =H203 -> 154
B209: DISTRIBUIÇÃO ETÁRIA DA FROTA COM AR CONDICIONADO | D209: Micro-Ônibus | E209: 0 a 1 ano | F209: veículos | G209: =Insumos!G209 -> 0 | H209: =H207+1 -> 158
E210: 1 a 2 anos | F210: veículos | G210: =Insumos!G210 -> 0 | H210: =H209+1 -> 159
E211: 2 a 3 anos | F211: veículos | G211: =Insumos!G211 -> 0 | H211: =H210+1 -> 160
E212: 3 a 4 anos | F212: veículos | G212: =Insumos!G212 -> 0 | H212: 161
E213: 4 a 5 anos | F213: veículos | G213: =Insumos!G213 -> 0 | H213: 162
E214: 5 a 6 anos | F214: veículos | G214: =Insumos!G214 -> 0 | H214: 163
E215: 6 a 7 anos | F215: veículos | G215: =Insumos!G215 -> 0 | H215: 164
E216: 7 a 8 anos | F216: veículos | G216: =Insumos!G216 -> 0 | H216: 165
E217: 8 a 9 anos | F217: veículos | G217: =Insumos!G217 -> 0 | H217: 166
E218: 9 a 10 anos | F218: veículos | G218: =Insumos!G218 -> 0 | H218: 167
E219: 10 a 11 anos | F219: veículos | G219: =Insumos!G219 -> 0 | H219: 168
E220: 11 a 12 anos | F220: veículos | G220: =Insumos!G220 -> 0 | H220: 169
E221: 12 a 13 anos | F221: veículos | G221: =Insumos!G221 -> 0 | H221: 170
E222: 13 a 14 anos | F222: veículos | G222: =Insumos!G222 -> 0 | H222: 171
E223: 14 a 15 anos | F223: veículos | G223: =Insumos!G223 -> 0 | H223: 172
E224: + de 15 anos | F224: veículos | G224: =Insumos!G224 -> 0 | H224: 173
E225: Total | F225: veículos | G225: =SUM(G209:G224) -> 0 | H225: 174 | K225: =H225 -> 174 | L225: = | M225: soma ( | N225: =H209 -> 158 | O225: : | P225: =H224 -> 173 | Q225: )
B227: DISTRIBUIÇÃO ETÁRIA DA FROTA COM AR CONDICIONADO | D227: Ônibus Convencional | E227: 0 a 1 ano | F227: veículos | G227: =Insumos!G226 -> 0 | H227: =H225+1 -> 175
E228: 1 a 2 anos | F228: veículos | G228: =Insumos!G227 -> 0 | H228: =H227+1 -> 176
E229: 2 a 3 anos | F229: veículos | G229: =Insumos!G228 -> 0 | H229: =H228+1 -> 177
E230: 3 a 4 anos | F230: veículos | G230: =Insumos!G229 -> 0 | H230: 178
E231: 4 a 5 anos | F231: veículos | G231: =Insumos!G230 -> 0 | H231: 179
E232: 5 a 6 anos | F232: veículos | G232: =Insumos!G231 -> 0 | H232: 180
E233: 6 a 7 anos | F233: veículos | G233: =Insumos!G232 -> 0 | H233: 181
E234: 7 a 8 anos | F234: veículos | G234: =Insumos!G233 -> 0 | H234: 182
E235: 8 a 9 anos | F235: veículos | G235: =Insumos!G234 -> 0 | H235: 183
E236: 9 a 10 anos | F236: veículos | G236: =Insumos!G235 -> 0 | H236: 184
E237: 10 a 11 anos | F237: veículos | G237: =Insumos!G236 -> 0 | H237: 185
... 883 more rows

Sheet Depre e Rem Gen
B2: Cálculo Genérico de Depreciação e Remuneração do Capital Investindo em Veículos | AI2: Outros Ativos
K6: Item | N6: Micro-ônibus | O6: Ônibus Convencional | P6: Ônibus Leito | Q6: Ônibus Misto | R6: Outro
D7: TRC | E7: 0.12
K8: Vida Útil (anos) | N8: 10 | O8: 10 | P8: 10 | Q8: 10 | R8: 10
K9: Valor Residual (%) | N9: 10 | O9: 10 | P9: 10 | Q9: 10 | R9: 10
N11: 1 | O11: 2 | P11: 3 | Q11: 4 | R11: 5
N12: =ROUND(-0.9722*N11+16.692,0) -> 16 | O12: =ROUND(-0.9722*O11+16.692,0) -> 15 | P12: 14 | Q12: 13 | R12: 12
N13: y=-0,9722 X+16,692
AI14: Item | AK14: Vida Útil (anos) | AL14: Valor Residual (%) | AM14: Coeficiente de depreciação mensal
AR16: valor
C17: Micro-ônibus | F17: Depreciação | I17: Ônibus Leve | L17: Depreciação | O17: Ônibus Pesado | R17: Depreciação | U17: Ônibus Articulado | X17: Depreciação | AA17: Ônibus Bi-Articulado | AD17: Depreciação | AI17: Edificações | AK17: 25 | AL17: 10 | AM17: =(100-AL17)/(1200*AK17) -> 0.003 | AP17: =1+AP16 -> 1 | AQ17: =1-AP17*AM$17*12 -> 0.964 | AR17: =
F18: Anual | G18: Mensal | L18: Anual | M18: Mensal | R18: Anual | S18: Mensal | X18: Anual | Y18: Mensal | AD18: Anual | AE18: Mensal | AI18: Equipamentos de Garagem | AK18: 10 | AL18: 0 | AM18: =(100-AL18)/(1200*AK18) -> 0.008333333333 | AP18: =1+AP17 -> 2 | AQ18: 0.928
C19: 1 | D19: =N8 -> 10 | E19: =1-N$9/100 -> 0.9 | F19: =E19*D19/C$35 -> 0.1636363636 | G19: =F19/12 -> 0.01363636364 | I19: 1 | J19: =O8 -> 10 | K19: =1-O$9/100 -> 0.9 | L19: =K19*J19/I$35 -> 0.1636363636 | M19: =L19/12 -> 0.01363636364 | O19: 1 | P19: =P8 -> 10 | Q19: =1-P$9/100 -> 0.9 | R19: =Q19*P19/O$35 -> 0.1636363636 | S19: =R19/12 -> 0.01363636364 | U19: 1 | V19: =Q8 -> 10 | W19: =1-Q$9/100 -> 0.9 | X19: =W19*V19/U$35 -> 0.1636363636 | Y19: =X19/12 -> 0.01363636364 | AA19: 1 | AB19: =R8 -> 10 | AC19: =1-R$9/100 -> 0.9 | AD19: =AC19*AB19/AA$35 -> 0.1636363636 | AE19: =AD19/12 -> 0.01363636364 | AI19: Equiipamentos de Bilhetagem Eletrônica e ITS | AK19: 5 | AL19: 0 | AM19: 0.01666666667 | AP19: 3 | AQ19: 0.892
C20: =1+C19 -> 2 | D20: =IF((D19-1)<0,0,(D19-1)) -> 9 | E20: 0.9 | F20: =E20*D20/C$35 -> 0.1472727273 | G20: =F20/12 -> 0.01227272727 | I20: =1+I19 -> 2 | J20: =IF((J19-1)<0,0,(J19-1)) -> 9 | K20: 0.9 | L20: =K20*J20/I$35 -> 0.1472727273 | M20: =L20/12 -> 0.01227272727 | O20: =1+O19 -> 2 | P20: =IF((P19-1)<0,0,(P19-1)) -> 9 | Q20: 0.9 | R20: 0.1472727273 | S20: =R20/12 -> 0.01227272727 | U20: =1+U19 -> 2 | V20: =IF((V19-1)<0,0,(V19-1)) -> 9 | W20: =1-Q$9/100 -> 0.9 | X20: =W20*V20/U$35 -> 0.1472727273 | Y20: =X20/12 -> 0.01227272727 | AA20: =1+AA19 -> 2 | AB20: =IF((AB19-1)<0,0,(AB19-1)) -> 9 | AC20: =1-R$9/100 -> 0.9 | AD20: =AC20*AB20/AA$35 -> 0.1472727273 | AE20: =AD20/12 -> 0.01227272727 | AI20: Veículos de Apoio | AJ20: Caminhão-oficina | AK20: 15 | AL20: 10 | AM20: 0.005 | AP20: 4 | AQ20: 0.856
C21: =1+C20 -> 3 | D21: =IF((D20-1)<0,0,(D20-1)) -> 8 | E21: 0.9 | F21: 0.1309090909 | G21: 0.01090909091 | I21: =1+I20 -> 3 | J21: =IF((J20-1)<0,0,(J20-1)) -> 8 | K21: 0.9 | L21: 0.1309090909 | M21: 0.01090909091 | O21: =1+O20 -> 3 | P21: =IF((P20-1)<0,0,(P20-1)) -> 8 | Q21: 0.9 | R21: 0.1309090909 | S21: 0.01090909091 | U21: =1+U20 -> 3 | V21: =IF((V20-1)<0,0,(V20-1)) -> 8 | W21: 0.9 | X21: 0.1309090909 | Y21: 0.01090909091 | AA21: =1+AA20 -> 3 | AB21: =IF((AB20-1)<0,0,(AB20-1)) -> 8 | AC21: 0.9 | AD21: 0.1309090909 | AE21: 0.01090909091 | AJ21: Caminhão-guincho | AK21: 15 | AL21: 10 | AM21: 0.005 | AP21: 5 | AQ21: 0.82
C22: 4 | D22: 7 | E22: 0.9 | F22: 0.1145454545 | G22: 0.009545454545 | I22: 4 | J22: 7 | K22: 0.9 | L22: 0.1145454545 | M22: 0.009545454545 | O22: 4 | P22: 7 | Q22: 0.9 | R22: 0.1145454545 | S22: 0.009545454545 | U22: 4 | V22: 7 | W22: 0.9 | X22: 0.1145454545 | Y22: 0.009545454545 | AA22: 4 | AB22: 7 | AC22: 0.9 | AD22: 0.1145454545 | AE22: 0.009545454545 | AJ22: Caminhoneta | AK22: 8 | AL22: 15 | AM22: 0.008854166667 | AP22: 6 | AQ22: 0.784
C23: 5 | D23: 6 | E23: 0.9 | F23: 0.09818181818 | G23: 0.008181818182 | I23: 5 | J23: 6 | K23: 0.9 | L23: 0.09818181818 | M23: 0.008181818182 | O23: 5 | P23: 6 | Q23: 0.9 | R23: 0.09818181818 | S23: 0.008181818182 | U23: 5 | V23: 6 | W23: 0.9 | X23: 0.09818181818 | Y23: 0.008181818182 | AA23: 5 | AB23: 6 | AC23: 0.9 | AD23: 0.09818181818 | AE23: 0.008181818182 | AJ23: Auitomóvel Básico | AK23: 5 | AL23: 20 | AM23: 0.01333333333 | AP23: 7 | AQ23: 0.748
C24: 6 | D24: 5 | E24: 0.9 | F24: 0.08181818182 | G24: 0.006818181818 | I24: 6 | J24: 5 | K24: 0.9 | L24: 0.08181818182 | M24: 0.006818181818 | O24: 6 | P24: 5 | Q24: 0.9 | R24: 0.08181818182 | S24: 0.006818181818 | U24: 6 | V24: 5 | W24: 0.9 | X24: 0.08181818182 | Y24: 0.006818181818 | AA24: 6 | AB24: 5 | AC24: 0.9 | AD24: 0.08181818182 | AE24: 0.006818181818 | AJ24: Motocicleta | AK24: 5 | AL24: 20 | AM24: 0.01333333333 | AP24: 8 | AQ24: 0.712
C25: 7 | D25: 4 | E25: 0.9 | F25: 0.06545454545 | G25: 0.005454545455 | I25: 7 | J25: 4 | K25: 0.9 | L25: 0.06545454545 | M25: 0.005454545455 | O25: 7 | P25: 4 | Q25: 0.9 | R25: 0.06545454545 | S25: 0.005454545455 | U25: 7 | V25: 4 | W25: 0.9 | X25: 0.06545454545 | Y25: 0.005454545455 | AA25: 7 | AB25: 4 | AC25: 0.9 | AD25: 0.06545454545 | AE25: 0.005454545455 | AP25: 9 | AQ25: 0.676
C26: 8 | D26: 3 | E26: 0.9 | F26: 0.04909090909 | G26: 0.004090909091 | I26: 8 | J26: 3 | K26: 0.9 | L26: 0.04909090909 | M26: 0.004090909091 | O26: 8 | P26: 3 | Q26: 0.9 | R26: 0.04909090909 | S26: 0.004090909091 | U26: 8 | V26: 3 | W26: 0.9 | X26: 0.04909090909 | Y26: 0.004090909091 | AA26: 8 | AB26: 3 | AC26: 0.9 | AD26: 0.04909090909 | AE26: 0.004090909091 | AP26: 10 | AQ26: 0.64
C27: 9 | D27: 2 | E27: 0.9 | F27: 0.03272727273 | G27: 0.002727272727 | I27: 9 | J27: 2 | K27: 0.9 | L27: 0.03272727273 | M27: 0.002727272727 | O27: 9 | P27: 2 | Q27: 0.9 | R27: 0.03272727273 | S27: 0.002727272727 | U27: 9 | V27: 2 | W27: 0.9 | X27: 0.03272727273 | Y27: 0.002727272727 | AA27: 9 | AB27: 2 | AC27: 0.9 | AD27: 0.03272727273 | AE27: 0.002727272727 | AI27: Remuneração de Outros Ativos | AK27: (metade da vida útil) | AP27: 11 | AQ27: 0.604
C28: 10 | D28: 1 | E28: 0.9 | F28: 0.01636363636 | G28: 0.001363636364 | I28: 10 | J28: 1 | K28: 0.9 | L28: 0.01636363636 | M28: 0.001363636364 | O28: 10 | P28: 1 | Q28: 0.9 | R28: 0.01636363636 | S28: 0.001363636364 | U28: 10 | V28: 1 | W28: 0.9 | X28: 0.01636363636 | Y28: 0.001363636364 | AA28: 10 | AB28: 1 | AC28: 0.9 | AD28: 0.01636363636 | AE28: 0.001363636364 | AP28: 12 | AQ28: 0.568
C29: 11 | D29: 0 | E29: 0.9 | F29: 0 | G29: 0 | I29: 11 | J29: 0 | K29: 0.9 | L29: 0 | M29: 0 | O29: 11 | P29: 0 | Q29: 0.9 | R29: 0 | S29: 0 | U29: 11 | V29: 0 | W29: 0.9 | X29: 0 | Y29: 0 | AA29: 11 | AB29: 0 | AC29: 0.9 | AD29: 0 | AE29: 0 | AI29: Item | AK29: Valor | AP29: 13 | AQ29: 0.532
C30: 12 | D30: 0 | E30: 0.9 | F30: 0 | G30: 0 | I30: 12 | J30: 0 | K30: 0.9 | L30: 0 | M30: 0 | O30: 12 | P30: 0 | Q30: 0.9 | R30: 0 | S30: 0 | U30: 12 | V30: 0 | W30: 0.9 | X30: 0 | Y30: 0 | AA30: 12 | AB30: 0 | AC30: 0.9 | AD30: 0 | AE30: 0 | AP30: 14 | AQ30: 0.496
C31: 13 | D31: 0 | E31: 0.9 | F31: 0 | G31: 0 | I31: 13 | J31: 0 | K31: 0.9 | L31: 0 | M31: 0 | O31: 13 | P31: 0 | Q31: 0.9 | R31: 0 | S31: 0 | U31: 13 | V31: 0 | W31: 0.9 | X31: 0 | Y31: 0 | AA31: 13 | AB31: 0 | AC31: 0.9 | AD31: 0 | AE31: 0 | AP31: 15 | AQ31: 0.46
C32: 14 | D32: 0 | E32: 0.9 | F32: 0 | G32: 0 | I32: 14 | J32: 0 | K32: 0.9 | L32: 0 | M32: 0 | O32: 14 | P32: 0 | Q32: 0.9 | R32: 0 | S32: 0 | U32: 14 | V32: 0 | W32: 0.9 | X32: 0 | Y32: 0 | AA32: 14 | AB32: 0 | AC32: 0.9 | AD32: 0 | AE32: 0 | AI32: Edificações | AK32: =0.12*((1-AL17/100)/AK17)/12 -> 0.00036
C33: 15 | D33: 0 | E33: 0.9 | F33: 0 | G33: 0 | I33: 15 | J33: 0 | K33: 0.9 | L33: 0 | M33: 0 | O33: 15 | P33: 0 | Q33: 0.9 | R33: 0 | S33: 0 | U33: 15 | V33: 0 | W33: 0.9 | X33: 0 | Y33: 0 | AA33: 15 | AB33: 0 | AC33: 0.9 | AD33: 0 | AE33: 0 | AI33: Equipamentos de Garagem | AK33: 0.001
C34: > 15 | D34: 0 | E34: 0.9 | F34: 0 | G34: 0 | I34: > 15 | J34: 0 | K34: 0.9 | L34: 0 | M34: 0 | O34: > 15 | P34: 0 | Q34: 0.9 | R34: 0 | S34: 0 | U34: > 15 | V34: 0 | W34: 0.9 | X34: 0 | Y34: 0 | AA34: > 15 | AB34: 0 | AC34: 0.9 | AD34: 0 | AE34: 0 | AI34: Equiipamentos de Bilhetagem Eletrônica e ITS | AK34: 0.002
C35: =SUM(D19:D31) -> 55 | I35: =SUM(J19:J31) -> 55 | O35: =SUM(P19:P31) -> 55 | U35: =SUM(V19:V31) -> 55 | AA35: =SUM(AB19:AB31) -> 55 | AI35: Veículos de Apoio | AJ35: Caminhão-oficina | AK35: 0.0006
AJ36: Caminhão-guincho | AK36: 0.0006
AJ37: Caminhoneta | AK37: 0.0010625
AJ38: Auitomóvel Básico | AK38: 0.0016
AJ39: Motocicleta | AK39: 0.0016
C40: Micro-ônibus | F40: Remuneração | I40: Ônibus Leve | L40: Remuneração | O40: Ônibus Pesado | R40: Remuneração | U40: Ônibus Articulado | X40: Remuneração | AA40: Ônibus Bi-Articulado | AD40: Remuneração
F41: Anual | G41: Mensal | L41: Anual | M41: Mensal | R41: Anual | S41: Mensal | X41: Anual | Y41: Mensal | AD41: Anual | AE41: Mensal
C42: 1 | D42: 0 | E42: =1-D42 -> 1 | F42: =E42*$E$7 -> 0.12 | G42: =F42/12 -> 0.01 | I42: 1 | J42: 0 | K42: =1-J42 -> 1 | L42: =K42*$E$7 -> 0.12 | M42: =L42/12 -> 0.01 | O42: 1 | P42: 0 | Q42: =1-P42 -> 1 | R42: =Q42*$E$7 -> 0.12 | S42: =R42/12 -> 0.01 | U42: 1 | V42: 0 | W42: =1-V42 -> 1 | X42: =W42*$E$7 -> 0.12 | Y42: =X42/12 -> 0.01 | AA42: 1 | AB42: 0 | AC42: =1-AB42 -> 1 | AD42: =AC42*$E$7 -> 0.12 | AE42: =AD42/12 -> 0.01
C43: =1+C42 -> 2 | D43: =E$19*SUM(D$19:D19)/C$35 -> 0.1636363636 | E43: =1-D43 -> 0.8363636364 | F43: =E43*$E$7 -> 0.1003636364 | G43: =F43/12 -> 0.008363636364 | I43: =1+I42 -> 2 | J43: =K$19*SUM(J$19:J19)/I$35 -> 0.1636363636 | K43: =1-J43 -> 0.8363636364 | L43: =K43*$E$7 -> 0.1003636364 | M43: =L43/12 -> 0.008363636364 | O43: =1+O42 -> 2 | P43: =Q$19*SUM(P$19:P19)/O$35 -> 0.1636363636 | Q43: =1-P43 -> 0.8363636364 | R43: =Q43*$E$7 -> 0.1003636364 | S43: =R43/12 -> 0.008363636364 | U43: =1+U42 -> 2 | V43: =W$19*SUM(V$19:V19)/U$35 -> 0.1636363636 | W43: =1-V43 -> 0.8363636364 | X43: =W43*$E$7 -> 0.1003636364 | Y43: =X43/12 -> 0.008363636364 | AA43: =1+AA42 -> 2 | AB43: =AC$19*SUM(AB$19:AB19)/AA$35 -> 0.1636363636 | AC43: =1-AB43 -> 0.8363636364 | AD43: =AC43*$E$7 -> 0.1003636364 | AE43: =AD43/12 -> 0.008363636364
C44: =1+C43 -> 3 | D44: =E$19*SUM(D$19:D20)/C$35 -> 0.3109090909 | E44: 0.6890909091 | F44: 0.08269090909 | G44: 0.006890909091 | I44: =1+I43 -> 3 | J44: =K$19*SUM(J$19:J20)/I$35 -> 0.3109090909 | K44: 0.6890909091 | L44: 0.08269090909 | M44: 0.006890909091 | O44: =1+O43 -> 3 | P44: =Q$19*SUM(P$19:P20)/O$35 -> 0.3109090909 | Q44: 0.6890909091 | R44: 0.08269090909 | S44: 0.006890909091 | U44: =1+U43 -> 3 | V44: =W$19*SUM(V$19:V20)/U$35 -> 0.3109090909 | W44: 0.6890909091 | X44: 0.08269090909 | Y44: 0.006890909091 | AA44: =1+AA43 -> 3 | AB44: =AC$19*SUM(AB$19:AB20)/AA$35 -> 0.3109090909 | AC44: 0.6890909091 | AD44: 0.08269090909 | AE44: 0.006890909091
C45: 4 | D45: =E$19*SUM(D$19:D21)/C$35 -> 0.4418181818 | E45: 0.5581818182 | F45: 0.06698181818 | G45: 0.005581818182 | I45: 4 | J45: =K$19*SUM(J$19:J21)/I$35 -> 0.4418181818 | K45: 0.5581818182 | L45: 0.06698181818 | M45: 0.005581818182 | O45: 4 | P45: =Q$19*SUM(P$19:P21)/O$35 -> 0.4418181818 | Q45: 0.5581818182 | R45: 0.06698181818 | S45: 0.005581818182 | U45: 4 | V45: =W$19*SUM(V$19:V21)/U$35 -> 0.4418181818 | W45: 0.5581818182 | X45: 0.06698181818 | Y45: 0.005581818182 | AA45: 4 | AB45: =AC$19*SUM(AB$19:AB21)/AA$35 -> 0.4418181818 | AC45: 0.5581818182 | AD45: 0.06698181818 | AE45: 0.005581818182
C46: 5 | D46: =E$19*SUM(D$19:D22)/C$35 -> 0.5563636364 | E46: 0.4436363636 | F46: 0.05323636364 | G46: 0.004436363636 | I46: 5 | J46: =K$19*SUM(J$19:J22)/I$35 -> 0.5563636364 | K46: 0.4436363636 | L46: 0.05323636364 | M46: 0.004436363636 | O46: 5 | P46: =Q$19*SUM(P$19:P22)/O$35 -> 0.5563636364 | Q46: 0.4436363636 | R46: 0.05323636364 | S46: 0.004436363636 | U46: 5 | V46: =W$19*SUM(V$19:V22)/U$35 -> 0.5563636364 | W46: 0.4436363636 | X46: 0.05323636364 | Y46: 0.004436363636 | AA46: 5 | AB46: =AC$19*SUM(AB$19:AB22)/AA$35 -> 0.5563636364 | AC46: 0.4436363636 | AD46: 0.05323636364 | AE46: 0.004436363636
C47: 6 | D47: =E$19*SUM(D$19:D23)/C$35 -> 0.6545454545 | E47: 0.3454545455 | F47: 0.04145454545 | G47: 0.003454545455 | I47: 6 | J47: =K$19*SUM(J$19:J23)/I$35 -> 0.6545454545 | K47: 0.3454545455 | L47: 0.04145454545 | M47: 0.003454545455 | O47: 6 | P47: =Q$19*SUM(P$19:P23)/O$35 -> 0.6545454545 | Q47: 0.3454545455 | R47: 0.04145454545 | S47: 0.003454545455 | U47: 6 | V47: =W$19*SUM(V$19:V23)/U$35 -> 0.6545454545 | W47: 0.3454545455 | X47: 0.04145454545 | Y47: 0.003454545455 | AA47: 6 | AB47: =AC$19*SUM(AB$19:AB23)/AA$35 -> 0.6545454545 | AC47: 0.3454545455 | AD47: 0.04145454545 | AE47: 0.003454545455
C48: 7 | D48: =E$19*SUM(D$19:D24)/C$35 -> 0.7363636364 | E48: 0.2636363636 | F48: 0.03163636364 | G48: 0.002636363636 | I48: 7 | J48: =K$19*SUM(J$19:J24)/I$35 -> 0.7363636364 | K48: 0.2636363636 | L48: 0.03163636364 | M48: 0.002636363636 | O48: 7 | P48: =Q$19*SUM(P$19:P24)/O$35 -> 0.7363636364 | Q48: 0.2636363636 | R48: 0.03163636364 | S48: 0.002636363636 | U48: 7 | V48: =W$19*SUM(V$19:V24)/U$35 -> 0.7363636364 | W48: 0.2636363636 | X48: 0.03163636364 | Y48: 0.002636363636 | AA48: 7 | AB48: =AC$19*SUM(AB$19:AB24)/AA$35 -> 0.7363636364 | AC48: 0.2636363636 | AD48: 0.03163636364 | AE48: 0.002636363636
C49: 8 | D49: =E$19*SUM(D$19:D25)/C$35 -> 0.8018181818 | E49: 0.1981818182 | F49: 0.02378181818 | G49: 0.001981818182 | I49: 8 | J49: =K$19*SUM(J$19:J25)/I$35 -> 0.8018181818 | K49: 0.1981818182 | L49: 0.02378181818 | M49: 0.001981818182 | O49: 8 | P49: =Q$19*SUM(P$19:P25)/O$35 -> 0.8018181818 | Q49: 0.1981818182 | R49: 0.02378181818 | S49: 0.001981818182 | U49: 8 | V49: =W$19*SUM(V$19:V25)/U$35 -> 0.8018181818 | W49: 0.1981818182 | X49: 0.02378181818 | Y49: 0.001981818182 | AA49: 8 | AB49: =AC$19*SUM(AB$19:AB25)/AA$35 -> 0.8018181818 | AC49: 0.1981818182 | AD49: 0.02378181818 | AE49: 0.001981818182
C50: 9 | D50: =E$19*SUM(D$19:D26)/C$35 -> 0.8509090909 | E50: 0.1490909091 | F50: 0.01789090909 | G50: 0.001490909091 | I50: 9 | J50: =K$19*SUM(J$19:J26)/I$35 -> 0.8509090909 | K50: 0.1490909091 | L50: 0.01789090909 | M50: 0.001490909091 | O50: 9 | P50: =Q$19*SUM(P$19:P26)/O$35 -> 0.8509090909 | Q50: 0.1490909091 | R50: 0.01789090909 | S50: 0.001490909091 | U50: 9 | V50: =W$19*SUM(V$19:V26)/U$35 -> 0.8509090909 | W50: 0.1490909091 | X50: 0.01789090909 | Y50: 0.001490909091 | AA50: 9 | AB50: =AC$19*SUM(AB$19:AB26)/AA$35 -> 0.8509090909 | AC50: 0.1490909091 | AD50: 0.01789090909 | AE50: 0.001490909091
C51: 10 | D51: =E$19*SUM(D$19:D27)/C$35 -> 0.8836363636 | E51: 0.1163636364 | F51: 0.01396363636 | G51: 0.001163636364 | I51: 10 | J51: =K$19*SUM(J$19:J27)/I$35 -> 0.8836363636 | K51: 0.1163636364 | L51: 0.01396363636 | M51: 0.001163636364 | O51: 10 | P51: =Q$19*SUM(P$19:P27)/O$35 -> 0.8836363636 | Q51: 0.1163636364 | R51: 0.01396363636 | S51: 0.001163636364 | U51: 10 | V51: =W$19*SUM(V$19:V27)/U$35 -> 0.8836363636 | W51: 0.1163636364 | X51: 0.01396363636 | Y51: 0.001163636364 | AA51: 10 | AB51: =AC$19*SUM(AB$19:AB27)/AA$35 -> 0.8836363636 | AC51: 0.1163636364 | AD51: 0.01396363636 | AE51: 0.001163636364
C52: 11 | D52: =E$19*SUM(D$19:D28)/C$35 -> 0.9 | E52: 0.1 | F52: 0.012 | G52: 0.001 | I52: 11 | J52: =K$19*SUM(J$19:J28)/I$35 -> 0.9 | K52: 0.1 | L52: 0.012 | M52: 0.001 | O52: 11 | P52: =Q$19*SUM(P$19:P28)/O$35 -> 0.9 | Q52: 0.1 | R52: 0.012 | S52: 0.001 | U52: 11 | V52: =W$19*SUM(V$19:V28)/U$35 -> 0.9 | W52: 0.1 | X52: 0.012 | Y52: 0.001 | AA52: 11 | AB52: =AC$19*SUM(AB$19:AB28)/AA$35 -> 0.9 | AC52: 0.1 | AD52: 0.012 | AE52: 0.001
C53: 12 | D53: =E$19*SUM(D$19:D29)/C$35 -> 0.9 | E53: 0.1 | F53: 0.012 | G53: 0.001 | I53: 12 | J53: =K$19*SUM(J$19:J29)/I$35 -> 0.9 | K53: 0.1 | L53: 0.012 | M53: 0.001 | O53: 12 | P53: =Q$19*SUM(P$19:P29)/O$35 -> 0.9 | Q53: 0.1 | R53: 0.012 | S53: 0.001 | U53: 12 | V53: =W$19*SUM(V$19:V29)/U$35 -> 0.9 | W53: 0.1 | X53: 0.012 | Y53: 0.001 | AA53: 12 | AB53: =AC$19*SUM(AB$19:AB29)/AA$35 -> 0.9 | AC53: 0.1 | AD53: 0.012 | AE53: 0.001
C54: 13 | D54: =E$19*SUM(D$19:D30)/C$35 -> 0.9 | E54: 0.1 | F54: 0.012 | G54: 0.001 | I54: 13 | J54: =K$19*SUM(J$19:J30)/I$35 -> 0.9 | K54: 0.1 | L54: 0.012 | M54: 0.001 | O54: 13 | P54: =Q$19*SUM(P$19:P30)/O$35 -> 0.9 | Q54: 0.1 | R54: 0.012 | S54: 0.001 | U54: 13 | V54: =W$19*SUM(V$19:V30)/U$35 -> 0.9 | W54: 0.1 | X54: 0.012 | Y54: 0.001 | AA54: 13 | AB54: =AC$19*SUM(AB$19:AB30)/AA$35 -> 0.9 | AC54: 0.1 | AD54: 0.012 | AE54: 0.001
C55: 14 | D55: =E$19*SUM(D$19:D31)/C$35 -> 0.9 | E55: 0.1 | F55: 0.012 | G55: 0.001 | I55: 14 | J55: =K$19*SUM(J$19:J31)/I$35 -> 0.9 | K55: 0.1 | L55: 0.012 | M55: 0.001 | O55: 14 | P55: =Q$19*SUM(P$19:P31)/O$35 -> 0.9 | Q55: 0.1 | R55: 0.012 | S55: 0.001 | U55: 14 | V55: =W$19*SUM(V$19:V31)/U$35 -> 0.9 | W55: 0.1 | X55: 0.012 | Y55: 0.001 | AA55: 14 | AB55: =AC$19*SUM(AB$19:AB31)/AA$35 -> 0.9 | AC55: 0.1 | AD55: 0.012 | AE55: 0.001
C56: 15 | D56: =E$19*SUM(D$19:D32)/C$35 -> 0.9 | E56: 0.1 | F56: 0.012 | G56: 0.001 | I56: 15 | J56: =K$19*SUM(J$19:J32)/I$35 -> 0.9 | K56: 0.1 | L56: 0.012 | M56: 0.001 | O56: 15 | P56: =Q$19*SUM(P$19:P32)/O$35 -> 0.9 | Q56: 0.1 | R56: 0.012 | S56: 0.001 | U56: 15 | V56: =W$19*SUM(V$19:V32)/U$35 -> 0.9 | W56: 0.1 | X56: 0.012 | Y56: 0.001 | AA56: 15 | AB56: =AC$19*SUM(AB$19:AB32)/AA$35 -> 0.9 | AC56: 0.1 | AD56: 0.012 | AE56: 0.001
C57: >15 | D57: =E$19*SUM(D$19:D33)/C$35 -> 0.9 | E57: 0.1 | F57: 0.012 | G57: 0.001 | I57: >15 | J57: =K$19*SUM(J$19:J33)/I$35 -> 0.9 | K57: 0.1 | L57: 0.012 | M57: 0.001 | O57: >15 | P57: =Q$19*SUM(P$19:P33)/O$35 -> 0.9 | Q57: 0.1 | R57: 0.012 | S57: 0.001 | U57: >15 | V57: =W$19*SUM(V$19:V33)/U$35 -> 0.9 | W57: 0.1 | X57: 0.012 | Y57: 0.001 | AA57: >15 | AB57: =AC$19*SUM(AB$19:AB33)/AA$35 -> 0.9 | AC57: 0.1 | AD57: 0.012 | AE57: 0.001
